Workbook

Sheet MODELOS
B22: ENSACADOR DE BIG BAG VERSÃO PISO | I22: ENSACADOR DE BIG BAG PRÉ DOSAGEM | Q22: ENSACADOR DE BIG BAG SUSPENSO POR CILINDRO | X22: ENSACADOR DE BIG BAG SUSPENSO POR MOTOR
B23: Mod.: 6110/11 (aço carbono / inox) | I23: Mod.: 6122 (aço carbono) | Q23: Mod.: 6123/24 (aço carbono / inox) | X23: Mod.: 6125 (aço carbono)

Sheet PISO (hidden)
Z2: PG 1 / 2 | BB2: PG 2 / 2
E3: FOLHA DE DADOS: ENSACADOR DE BIG BAG - PISO | AG3: FOLHA DE DADOS: ENSACADOR DE BIG BAG - PISO
AD4: DIMENSÕES DO BIG BAG E ESTRUTURA
C5: Proposta Comercial nº: | O5: Revisão: | T5: Data:
C8: Informações do CLIENTE
C9: Empresa:
C10: Unidade: | O10: CNPJ:
C11: Divisão: | O11: Setor
C12: Endereço: | X12: CEP:
C13: Bairro: | O13: Cidade: | X13: UF:
C14: Contato:
C15: Setor | O15: Cargo:
C16: e-mail: | O16: Telefone: | U16: Celular:
C19: PROCESSO | K19: Exemplo | P19: Real
C20: Produto | K20: AÇÚCAR
C21: Origem do material | K21: SILO
C22: Transporte do material para o Ensacador | K22: GRAVIDADE | P22: SELECIONE ▼
C23: Retirada do bag (carro manual/paleteira/outros) | K23: PALETEIRA | P23: SELECIONE ▼
C24: Área de ensacamento (segura/classificada) | K24: SEGURA | P24: SELECIONE ▼
C25: Intertravamento com CLP externo | K25: NÃO | P25: SELECIONE ▼
C26: Temperatura do produto (ºC) | K26: 30 | U26: Preencher os campos numéricos somente com valores
C27: Temperatura ambiente (ºC) | K27: 25
C28: Densidade do produto (g/cm3) | K28: 0.95
C29: Peso Líquido do Big Bag cheio (kg) | K29: 2000
C30: J Distância Piso-Silo (mm) | K30: 2500
C33: BIG BAG | K33: Exemplo | P33: Real
C34: Tipo de Big Bag | K34: RETANGULAR | P34: SELECIONE ▼
C35: A Diâmetro ou largura big bag (mm) | K35: 1000
C36: B Altura do big bag (mm) | K36: 1000
C37: C Altura da boca do big bag (mm) | K37: 400
C38: D Diâmetro da boca do big bag (mm) | K38: 400
C39: E Comprimento da alça (mm) | K39: 250
C40: F Distância entre alças (mm) | K40: 500
E41: CASO O PROCESSO TENHA MAIS DE UM TIPO DE BIG BAG
C44: PALLET | K44: Exemplo | P44: Real
C45: G Comprimento do pallet (mm) | K45: 1000
C46: H Largura do pallet (mm) | K46: 1000
C47: I Altura do pallet (mm) | K47: 150
C50: ENSACADOR DE BIG BAG | K50: Exemplo | P50: Real
C51: Ensacador em Aço Carbono ou Inox? | K51: AÇO INOX 304 | P51: SELECIONE ▼
C52: Tipo de Válvula de Bloqueio | K52: GUILHOTINA ALIMENTÍCIA | P52: SELECIONE ▼
C53: Diâmetro do duto de aliementação (mm) | K53: 6" (152,4 mm) | P53: SELECIONE ▼
C54: Fixação do bocal do Big Bag | K54: INFLÁVEL | P54: SELECIONE ▼
C55: Plataforma de Pesagem | K55: COM TAMPO LISO | P55: SELECIONE ▼
C56: Fixação da Plataforma | K56: CONTRAMARCO | P56: SELECIONE ▼
C57: Tipo de Automação | K57: PAINEL IHM + TRANSMISSOR | P57: SELECIONE ▼
C58: Tipo de Comunicação (Nota 1) | K58: DeviceNet + 4-20mA | P58: SELECIONE ▼
C59: Fixação do painel | K59: COM PEDESTAL | P59: SELECIONE ▼
C60: Comprimento Cabo Ensacador - Painel IHM (m) | K60: 50 m | P60: SELECIONE ▼
C61: Sistema para Pré Insuflamento do Big Bag | K61: SIM | P61: SELECIONE ▼ | AE61: K= | AF61: =IF(OR(PISO_MEDIDA_B="",PISO_MEDIDA_E="",PISO_MEDIDA_I="",LEFT(PISO_SELEÇÃO_FIX_PLAT,9)="SELECIONE",PISO_SELEÇÃO_VALVULA="",PISO_SELEÇÃO_PLAT=""),0, IF(AND(PISO_SELEÇÃO_PLAT="COM TRILHO",LEFT(PISO_SELEÇÃO_VALVULA,4)="GUIL",PISO_SELEÇÃO_FIX_PLAT="COPO POSICIONADOR"),SUM(PISO_MEDIDA_B+PISO_MEDIDA_E+PISO_MEDIDA_I+PISO_TRIL_COPO_GUIL), IF(AND(PISO_SELEÇÃO_PLAT="COM TRILHO",LEFT(PISO_SELEÇÃO_VALVULA,4)="BORB",PISO_SELEÇÃO_FIX_PLAT="COPO POSICIONADOR"),SUM(PISO_MEDIDA_B+PISO_MEDIDA_E+PISO_MEDIDA_I+PISO_TRIL_COPO_BORB), IF(AND(PISO_SELEÇÃO_PLAT="COM TRILHO",LEFT(PISO_SELEÇÃO_VALVULA,3)="SEM",PISO_SELEÇÃO_FIX_PLAT="COPO POSICIONADOR"),SUM(PISO_MEDIDA_B+PISO_MEDIDA_E+PISO_MEDIDA_I+PISO_TRIL_COPO_SEM), IF(AND(PISO_SELEÇÃO_PLAT="COM TRILHO",LEFT(PISO_SELEÇÃO_VALVULA,4)="GUIL",PISO_SELEÇÃO_FIX_PLAT="SOMENTE PÉ FLUTUANTE"),SUM(PISO_MEDIDA_B+PISO_MEDIDA_E+PISO_MEDIDA_I+PISO_TRIL_COPO_GUIL), IF(AND(PISO_SELEÇÃO_PLAT="COM TRILHO",LEFT(PISO_SELEÇÃO_VALVULA,4)="BORB",PISO_SELEÇÃO_FIX_PLAT="SOMENTE PÉ FLUTUANTE"),SUM(PISO_MEDIDA_B+PISO_MEDIDA_E+PISO_MEDIDA_I+PISO_TRIL_COPO_BORB), IF(AND(PISO_SELEÇÃO_PLAT="COM TRILHO",LEFT(PISO_SELEÇÃO_VALVULA,3)="SEM",PISO_SELEÇÃO_FIX_PLAT="SOMENTE PÉ FLUTUANTE"),SUM(PISO_MEDIDA_B+PISO_MEDIDA_E+PISO_MEDIDA_I+PISO_TRIL_COPO_SEM), IF(AND(PISO_SELEÇÃO_PLAT="COM TRILHO",LEFT(PISO_SELEÇÃO_VALVULA,4)="GUIL",PISO_SELEÇÃO_FIX_PLAT="CONTRAMARCO"),SUM(PISO_MEDIDA_B+PISO_MEDIDA_E+PISO_MEDIDA_I+PISO_TRIL_CONT_GUIL), IF(AND(PISO_SELEÇÃO_PLAT="COM TRILHO",LEFT(PISO_SELEÇÃO_VALVULA,4)="BORB",PISO_SELEÇÃO_FIX_PLAT="CONTRAMARCO"),SUM(PISO_MEDIDA_B+PISO_MEDIDA_E+PISO_MEDIDA_I+PISO_TRIL_CONT_BORB), IF(AND(PISO_SELEÇÃO_PLAT="COM TRILHO",LEFT(PISO_SELEÇÃO_VALVULA,3)="SEM",PISO_SELEÇÃO_FIX_PLAT="CONTRAMARCO"),SUM(PISO_MEDIDA_B+PISO_MEDIDA_E+PISO_MEDIDA_I+PISO_TRIL_CONT_SEM), IF(AND(PISO_SELEÇÃO_PLAT="COM TAMPO LISO",LEFT(PISO_SELEÇÃO_VALVULA,4)="GUIL",PISO_SELEÇÃO_FIX_PLAT="COPO POSICIONADOR"),SUM(PISO_MEDIDA_B+PISO_MEDIDA_E+PISO_MEDIDA_I+PISO_LIS_COPO_GUIL), IF(AND(PISO_SELEÇÃO_PLAT="COM TAMPO LISO",LEFT(PISO_SELEÇÃO_VALVULA,4)="BORB",PISO_SELEÇÃO_FIX_PLAT="COPO POSICIONADOR"),SUM(PISO_MEDIDA_B+PISO_MEDIDA_E+PISO_MEDIDA_I+PISO_LIS_COPO_BORB), IF(AND(PISO_SELEÇÃO_PLAT="COM TAMPO LISO",LEFT(PISO_SELEÇÃO_VALVULA,3)="SEM",PISO_SELEÇÃO_FIX_PLAT="COPO POSICIONADOR"),SUM(PISO_MEDIDA_B+PISO_MEDIDA_E+PISO_MEDIDA_I+PISO_LIS_COPO_SEM), IF(AND(PISO_SELEÇÃO_PLAT="COM TAMPO LISO",LEFT(PISO_SELEÇÃO_VALVULA,4)="GUIL",PISO_SELEÇÃO_FIX_PLAT="SOMENTE PÉ FLUTUANTE"),SUM(PISO_MEDIDA_B+PISO_MEDIDA_E+PISO_MEDIDA_I+PISO_LIS_COPO_GUIL), IF(AND(PISO_SELEÇÃO_PLAT="COM TAMPO LISO",LEFT(PISO_SELEÇÃO_VALVULA,4)="BORB",PISO_SELEÇÃO_FIX_PLAT="SOMENTE PÉ FLUTUANTE"),SUM(PISO_MEDIDA_B+PISO_MEDIDA_E+PISO_MEDIDA_I+PISO_LIS_COPO_BORB), IF(AND(PISO_SELEÇÃO_PLAT="COM TAMPO LISO",LEFT(PISO_SELEÇÃO_VALVULA,3)="SEM",PISO_SELEÇÃO_FIX_PLAT="SOMENTE PÉ FLUTUANTE"),SUM(PISO_MEDIDA_B+PISO_MEDIDA_E+PISO_MEDIDA_I+PISO_LIS_COPO_SEM), IF(AND(PISO_SELEÇÃO_PLAT="COM TAMPO LISO",LEFT(PISO_SELEÇÃO_VALVULA,4)="GUIL",PISO_SELEÇÃO_FIX_PLAT="CONTRAMARCO"),SUM(PISO_MEDIDA_B+PISO_MEDIDA_E+PISO_MEDIDA_I+PISO_LIS_CONT_GUIL), IF(AND(PISO_SELEÇÃO_PLAT="COM TAMPO LISO",LEFT(PISO_SELEÇÃO_VALVULA,4)="BORB",PISO_SELEÇÃO_FIX_PLAT="CONTRAMARCO"),SUM(PISO_MEDIDA_B+PISO_MEDIDA_E+PISO_MEDIDA_I+PISO_LIS_CONT_BORB), IF(AND(PISO_SELEÇÃO_PLAT="COM TAMPO LISO",LEFT(PISO_SELEÇÃO_VALVULA,3)="SEM",PISO_SELEÇÃO_FIX_PLAT="CONTRAMARCO"),SUM(PISO_MEDIDA_B+PISO_MEDIDA_E+PISO_MEDIDA_I+PISO_LIS_CONT_SEM), IF(AND(PISO_SELEÇÃO_PLAT="COM MESA DE ROLETES",LEFT(PISO_SELEÇÃO_VALVULA,4)="GUIL",PISO_SELEÇÃO_FIX_PLAT="COPO POSICIONADOR"),SUM(PISO_MEDIDA_B+PISO_MEDIDA_E+PISO_MEDIDA_I+PISO_ROL_COPO_GUIL), IF(AND(PISO_SELEÇÃO_PLAT="COM MESA DE ROLETES",LEFT(PISO_SELEÇÃO_VALVULA,4)="BORB",PISO_SELEÇÃO_FIX_PLAT="COPO POSICIONADOR"),SUM(PISO_MEDIDA_B+PISO_MEDIDA_E+PISO_MEDIDA_I+PISO_ROL_COPO_BORB), IF(AND(PISO_SELEÇÃO_PLAT="COM MESA DE ROLETES",LEFT(PISO_SELEÇÃO_VALVULA,3)="SEM",PISO_SELEÇÃO_FIX_PLAT="COPO POSICIONADOR"),SUM(PISO_MEDIDA_B+PISO_MEDIDA_E+PISO_MEDIDA_I+PISO_ROL_COPO_SEM), IF(AND(PISO_SELEÇÃO_PLAT="COM MESA DE ROLETES",LEFT(PISO_SELEÇÃO_VALVULA,4)="GUIL",PISO_SELEÇÃO_FIX_PLAT="SOMENTE PÉ FLUTUANTE"),SUM(PISO_MEDIDA_B+PISO_MEDIDA_E+PISO_MEDIDA_I+PISO_ROL_COPO_GUIL), IF(AND(PISO_SELEÇÃO_PLAT="COM MESA DE ROLETES",LEFT(PISO_SELEÇÃO_VALVULA,4)="BORB",PISO_SELEÇÃO_FIX_PLAT="SOMENTE PÉ FLUTUANTE"),SUM(PISO_MEDIDA_B+PISO_MEDIDA_E+PISO_MEDIDA_I+PISO_ROL_COPO_BORB), IF(AND(PISO_SELEÇÃO_PLAT="COM MESA DE ROLETES",LEFT(PISO_SELEÇÃO_VALVULA,3)="SEM",PISO_SELEÇÃO_FIX_PLAT="SOMENTE PÉ FLUTUANTE"),SUM(PISO_MEDIDA_B+PISO_MEDIDA_E+PISO_MEDIDA_I+PISO_ROL_COPO_SEM), IF(AND(PISO_SELEÇÃO_PLAT="COM MESA DE ROLETES",LEFT(PISO_SELEÇÃO_VALVULA,4)="GUIL",PISO_SELEÇÃO_FIX_PLAT="CONTRAMARCO"),SUM(PISO_MEDIDA_B+PISO_MEDIDA_E+PISO_MEDIDA_I+PISO_ROL_CONT_GUIL), IF(AND(PISO_SELEÇÃO_PLAT="COM MESA DE ROLETES",LEFT(PISO_SELEÇÃO_VALVULA,4)="BORB",PISO_SELEÇÃO_FIX_PLAT="CONTRAMARCO"),SUM(PISO_MEDIDA_B+PISO_MEDIDA_E+PISO_MEDIDA_I+PISO_ROL_CONT_BORB), IF(AND(PISO_SELEÇÃO_PLAT="COM MESA DE ROLETES",LEFT(PISO_SELEÇÃO_VALVULA,3)="SEM",PISO_SELEÇÃO_FIX_PLAT="CONTRAMARCO"),SUM(PISO_MEDIDA_B+PISO_MEDIDA_E+PISO_MEDIDA_I+PISO_ROL_CONT_SEM), IF(AND(PISO_SELEÇÃO_PLAT="COM MESA VIBRATÓRIA",LEFT(PISO_SELEÇÃO_VALVULA,4)="GUIL",PISO_SELEÇÃO_FIX_PLAT="COPO POSICIONADOR"),"CONSULTE A ENGENHARIA DE APLICAÇÃO", IF(AND(PISO_SELEÇÃO_PLAT="COM MESA VIBRATÓRIA",LEFT(PISO_SELEÇÃO_VALVULA,4)="BORB",PISO_SELEÇÃO_FIX_PLAT="COPO POSICIONADOR"),"CONSULTE A ENGENHARIA DE APLICAÇÃO", IF(AND(PISO_SELEÇÃO_PLAT="COM MESA VIBRATÓRIA",LEFT(PISO_SELEÇÃO_VALVULA,3)="SEM",PISO_SELEÇÃO_FIX_PLAT="COPO POSICIONADOR"),"CONSULTE A ENGENHARIA DE APLICAÇÃO", IF(AND(PISO_SELEÇÃO_PLAT="COM MESA VIBRATÓRIA",LEFT(PISO_SELEÇÃO_VALVULA,4)="GUIL",PISO_SELEÇÃO_FIX_PLAT="SOMENTE PÉ FLUTUANTE"),"CONSULTE A ENGENHARIA DE APLICAÇÃO", IF(AND(PISO_SELEÇÃO_PLAT="COM MESA VIBRATÓRIA",LEFT(PISO_SELEÇÃO_VALVULA,4)="BORB",PISO_SELEÇÃO_FIX_PLAT="SOMENTE PÉ FLUTUANTE"),"CONSULTE A ENGENHARIA DE APLICAÇÃO", IF(AND(PISO_SELEÇÃO_PLAT="COM MESA VIBRATÓRIA",LEFT(PISO_SELEÇÃO_VALVULA,3)="SEM",PISO_SELEÇÃO_FIX_PLAT="SOMENTE PÉ FLUTUANTE"),"CONSULTE A ENGENHARIA DE APLICAÇÃO", IF(AND(PISO_SELEÇÃO_PLAT="COM MESA VIBRATÓRIA",LEFT(PISO_SELEÇÃO_VALVULA,4)="GUIL",PISO_SELEÇÃO_FIX_PLAT="CONTRAMARCO"),"CONSULTE A ENGENHARIA DE APLICAÇÃO", IF(AND(PISO_SELEÇÃO_PLAT="COM MESA VIBRATÓRIA",LEFT(PISO_SELEÇÃO_VALVULA,4)="BORB",PISO_SELEÇÃO_FIX_PLAT="CONTRAMARCO"),"CONSULTE A ENGENHARIA DE APLICAÇÃO", IF(AND(PISO_SELEÇÃO_PLAT="COM MESA VIBRATÓRIA",LEFT(PISO_SELEÇÃO_VALVULA,3)="SEM",PISO_SELEÇÃO_FIX_PLAT="CONTRAMARCO"),"CONSULTE A ENGENHARIA DE APLICAÇÃO", 0))))))))))))))))))))))))))))))))))))) -> 0
K62: =IF(PISO_SELEÇÃO_AREA="CLASSIFICADA","PISO_LISTA_AUT_CLASS", IF(PISO_SELEÇÃO_AREA="SEGURA","PISO_LISTA_AUT_SEG","")) ->  | P62: =IF(PISO_SELEÇÃO_AUTOMAÇÃO="Indicador Linha 3000","PISO_LISTA_IND", IF(PISO_SELEÇÃO_AUTOMAÇÃO="PAINEL IHM + TRANSMISSOR","GERAL_LISTA_COMUNICAÇÃO", IF(PISO_SELEÇÃO_AUTOMAÇÃO="CAIXA Exd COM DISPLAY","PISO_LISTA_IND", IF(PISO_SELEÇÃO_AUTOMAÇÃO="CAIXA Exd + PAINEL IHM","GERAL_LISTA_COMUNICAÇÃO", """")))) -> "
C63: Nota1: O protocolo ModBus TCP via Ethernet é nativo no painel de comando.
C65: Laudo Técnico NR-10 e NR-12 | K65: SIM | P65: SELECIONE ▼
C67: CÓDIGO DE ENCOMENDA | O67: =IFERROR(IF(OR(PISO_SELEÇÃO_MAT_CONST="",PISO_SELEÇÃO_BOCAL="",PISO_SELEÇÃO_PLAT="",PISO_SELEÇÃO_FIX_PAINEL=""),"", _xlfn.CONCAT("ENS", _xlfn.XLOOKUP(PISO_SELEÇÃO_MAT_CONST,PISO_TAB_MATERIAL[DESCRIÇÃO],PISO_TAB_MATERIAL[CÓDIGO]), _xlfn.XLOOKUP(PISO_SELEÇÃO_VALVULA,GERAL_TAB_VALV[DESCRIÇÃO],GERAL_TAB_VALV[CÓDIGO]), _xlfn.XLOOKUP(PISO_SELEÇÃO_DUTO,GERAL_TAB_DUTO[DESCRIÇÃO],GERAL_TAB_DUTO[CÓDIGO]), _xlfn.XLOOKUP(PISO_SELEÇÃO_BOCAL,PISO_TAB_FIXADOR[DESCRIÇÃO],PISO_TAB_FIXADOR[CÓDIGO]), _xlfn.XLOOKUP(PISO_SELEÇÃO_PLAT,PISO_TAB_PLAT[DESCRIÇÃO],PISO_TAB_PLAT[CÓDIGO]), _xlfn.XLOOKUP(PISO_SELEÇÃO_FIX_PLAT,PISO_TAB_FIX_PLAT[DESCRIÇÃO],PISO_TAB_FIX_PLAT[CÓDIGO]), _xlfn.XLOOKUP(_xlfn.CONCAT(PISO_SELEÇÃO_AUTOMAÇÃO,"+",PISO_SELEÇÃO_COMUNICAÇÃO,"+",PISO_SELEÇÃO_CABO,"+",PISO_SELEÇÃO_FIX_PAINEL),TAB_COMBINAÇÕES[COMBINAÇÃO],TAB_COMBINAÇÕES[CÓDIGO]), _xlfn.XLOOKUP(PISO_SELEÇÃO_AREA,GERAL_TAB_AREA[DESCRIÇÃO],GERAL_TAB_AREA[CÓDIGO]), _xlfn.XLOOKUP(PISO_SELEÇÃO_INSU,GERAL_TAB_INSU[DESCRIÇÃO],GERAL_TAB_INSU[CÓDIGO]), _xlfn.XLOOKUP(IF(PISO_SELEÇÃO_LAUDO="N/A","NÃO",PISO_SELEÇÃO_LAUDO),GERAL_TAB_LAUDO[DESCRIÇÃO],GERAL_TAB_LAUDO[CÓDIGO]))),"PREENCHA TODOS OS CAMPOS") -> PREENCHA TODOS OS CAMPOS | AD67: INFORMAÇÕES IMPORTANTES
B69: Comentários:
AD79: Necessário:
AH80: Ponto de elétrica p/ painel da IHM, tensão 127/220 Vac (cabo de energia do painel: 2 m c/ plug 3 pinos NBR 14136). Necessário ponto de ar comprimido para instalação do equipamento com pressão entre 6 e 8 bar.
C83: Alfa Instrumentos R. Cel Mário de Azevedo, 138 - São Paulo-SP - Brasil - CEP 02710-020 F: (11) 3952-2299 - SAC: 0800-772-2910
C84: vendas@alfainstrumentos.com.br - www.alfainstrumentos.com.br | AE84: vendas@alfainstrumentos.com.br - www.alfainstrumentos.com.br
Z85: 0026PR04 | BB85: =Z85 -> 0026PR04

Sheet SUSPENSO (hidden)
Z2: PG 1 / 2 | BB2: PG 2 / 2
E3: FOLHA DE DADOS: ENSACADOR DE BIG BAG - SUSPENSO | AG3: FOLHA DE DADOS: ENSACADOR DE BIG BAG - SUSPENSO
AD4: DIMENSÕES DO BIG BAG E ESTRUTURA
C5: Proposta Comercial nº: | O5: Revisão: | T5: Data:
C8: Informações do CLIENTE
C9: Empresa:
C10: Unidade: | O10: CNPJ:
C11: Divisão: | O11: Setor
C12: Endereço: | X12: CEP:
C13: Bairro: | O13: Cidade: | X13: UF:
C14: Contato:
C15: Setor | O15: Cargo:
C16: e-mail: | O16: Telefone: | U16: Celular:
C19: PROCESSO | K19: Exemplo | P19: Real
C20: Produto | K20: AÇÚCAR
C21: Origem do material | K21: SILO
C22: Transporte do material para o Ensacador | K22: GRAVIDADE | P22: SELECIONE ▼
C23: Retirada do bag (carro manual/paleteira/outros) | K23: PALETEIRA | P23: SELECIONE ▼
C24: Área de ensacamento (segura/classificada) | K24: SEGURA | P24: SELECIONE ▼
C25: Intertravamento com CLP externo | K25: NÃO | P25: SELECIONE ▼
C26: Temperatura do produto (ºC) | K26: 30 | U26: Preencher os campos numéricos somente com valores
C27: Temperatura ambiente (ºC) | K27: 25
C28: Densidade do produto (g/cm3) | K28: 0.95
C29: Peso Líquido do Big Bag cheio (kg) | K29: 2000
C30: Diametro do Duto de Exaustão | K30: 10"
C31: J Distância Piso-Silo (mm) | K31: 3000
C34: BIG BAG | K34: Exemplo | P34: Real
C35: Tipo de Big Bag | K35: RETANGULAR | P35: SELECIONE ▼
C36: A Diâmetro ou largura big bag (mm) | K36: 1000
C37: B Altura do big bag (mm) | K37: 1000
C38: C Altura da boca do big bag (mm) | K38: 400
C39: D Diâmetro da boca do big bag (mm) | K39: 400
C40: E Comprimento da alça (mm) | K40: 250
C41: F Distância entre alças (mm) | K41: 500
E42: CASO O PROCESSO TENHA MAIS DE UM TIPO DE BIG BAG
C45: PALLET | K45: Exemplo | P45: Real
C46: G Comprimento do pallet (mm) | K46: 1000
C47: H Largura do pallet (mm) | K47: 1000
C48: I Altura do pallet (mm) | K48: 150
C51: ENSACADOR DE BIG BAG | K51: Exemplo | P51: Real
C52: Ensacador em Aço Carbono ou Inox? | K52: AÇO INOX 304 | P52: SELECIONE ▼
C53: Tipo de Válvula de Bloqueio | K53: GUILHOTINA ALIMENTÍCIA | P53: SELECIONE ▼
C54: Diâmetro do duto de aliementação (mm) | K54: 6" (152,4 mm) | P54: SELECIONE ▼
C55: Tipo de Automação | K55: PAINEL IHM + TRANSMISSOR | P55: SELECIONE ▼
C56: Tipo de Comunicação (Nota 1) | K56: DeviceNet + 4-20mA | P56: SELECIONE ▼
C57: Fixação do painel | K57: COM PEDESTAL | P57: SELECIONE ▼
C58: Comprimento Cabo Ensacador - Painel IHM (m) | K58: 50 m | P58: SELECIONE ▼
C59: Sistema para Pré Insuflamento do Big Bag | K59: SIM | P59: SELECIONE ▼
C60: Mesa Vibratória | K60: SIM | P60: SELECIONE ▼
K61: =IF(SUSP_SELEÇÃO_AREA="CLASSIFICADA","SUSP_LISTA_AUT_CLASS", IF(SUSP_SELEÇÃO_AREA="SEGURA","SUSP_LISTA_AUT_SEG","")) -> 
C62: Nota1: O protocolo ModBus TCP via Ethernet é nativo no painel de comando.
C64: Laudo Técnico NR-10 e NR-12 | K64: SIM | P64: SELECIONE ▼
C66: CÓDIGO DE ENCOMENDA | O66: =IFERROR(IF(SUSP_SELEÇÃO_MATERIAL_CONSTRUÇÃO="","", _xlfn.CONCAT("ENS", _xlfn.XLOOKUP(SUSP_SELEÇÃO_MATERIAL_CONSTRUÇÃO,SUSP_TAB_MATERIAL[DESCRIÇÃO],SUSP_TAB_MATERIAL[MODELOS]), _xlfn.XLOOKUP(SUSP_SELEÇÃO_VALVULA,GERAL_TAB_VALV[DESCRIÇÃO],GERAL_TAB_VALV[MODELOS]), _xlfn.XLOOKUP(SUSP_SELEÇÃO_DUTO,SUSP_TAB_DUTO[DESCRIÇÃO],SUSP_TAB_DUTO[MODELOS]), _xlfn.XLOOKUP(_xlfn.CONCAT(SUSP_SELEÇÃO_AUTOMAÇÃO,"+",SUSP_SELEÇÃO_COMUNICAÇÃO,"+",SUSP_SELEÇÃO_CABO,"+",SUSP_SELEÇÃO_FIX_PAINEL),TAB_COMBINAÇÕES[COMBINAÇÃO],TAB_COMBINAÇÕES[CÓDIGO]), _xlfn.XLOOKUP(SUSP_SELEÇÃO_AREA,GERAL_TAB_AREA[DESCRIÇÃO],GERAL_TAB_AREA[MODELOS]), _xlfn.XLOOKUP(SUSP_SELEÇÃO_INSU,GERAL_TAB_INSU[DESCRIÇÃO],GERAL_TAB_INSU[MODELOS]), _xlfn.XLOOKUP(SUSP_SELEÇÃO_VIBR,GERAL_TAB_INSU[DESCRIÇÃO],GERAL_TAB_INSU[MODELOS]), _xlfn.XLOOKUP(SUSP_SELEÇÃO_LAUDO,GERAL_TAB_LAUDO[DESCRIÇÃO],GERAL_TAB_LAUDO[MODELOS]))),"PREENCHA TODOS OS CAMPOS") -> PREENCHA TODOS OS CAMPOS
AD67: INFORMAÇÕES IMPORTANTES
B69: Comentários: | AD69: - CONSUMO DE AR DO BOCAL INFLÁVEL 6L/CICLO.
AD70: - PARA UTILIZAR O BOCAL INFLÁVEL É NECESSÁRIO QUE O DIÂMETRO DA BOCA DO BIG BAG SEJA MAIOR QUE 400mm.
AD79: Necessário:
AH80: Ponto de elétrica p/ painel da IHM, tensão 127/220 Vac (cabo de energia do painel: 2 m c/ plug 3 pinos NBR 14136). Necessário ponto de ar comprimido para instalação do equipamento com pressão entre 6 e 8 bar.
C83: Alfa Instrumentos R. Cel Mário de Azevedo, 138 - São Paulo-SP - Brasil - CEP 02710-020 F: (11) 3952-2299 - SAC: 0800-772-2910
C84: vendas@alfainstrumentos.com.br - www.alfainstrumentos.com.br | AE84: vendas@alfainstrumentos.com.br - www.alfainstrumentos.com.br
Z85: =PISO!Z85 -> 0026PR04 | BB85: =Z85 -> 0026PR04

Sheet PRÉ PESAGEM (hidden)
Z2: PG 1 / 2 | BB2: PG 2 / 2
E3: FOLHA DE DADOS: ENSACADOR DE BIG BAG - PRÉ DOSAGEM | AG3: FOLHA DE DADOS: ENSACADOR DE BIG BAG - PRÉ DOSAGEM
AD4: DIMENSÕES DO BIG BAG E ESTRUTURA
C5: Proposta Comercial nº: | O5: Revisão: | T5: Data:
C8: Informações do CLIENTE
C9: Empresa:
C10: Unidade: | O10: CNPJ:
C11: Divisão: | O11: Setor
C12: Endereço: | X12: CEP:
C13: Bairro: | O13: Cidade: | X13: UF:
C14: Contato:
C15: Setor | O15: Cargo:
C16: e-mail: | O16: Telefone: | U16: Celular:
C19: PROCESSO | K19: Exemplo | P19: Real
C20: Produto | K20: AÇÚCAR
C21: Origem do material | K21: SILO
C22: Transporte do material para o Ensacador | K22: GRAVIDADE | P22: SELECIONE ▼
C23: Retirada do bag (carro manual/paleteira/outros) | K23: PALETEIRA | P23: SELECIONE ▼
C24: Área de ensacamento (segura/classificada) | K24: SEGURA | P24: SELECIONE ▼
C25: Intertravamento com CLP externo | K25: NÃO | P25: SELECIONE ▼
C26: Temperatura do produto (ºC) | K26: 30 | U26: Preencher os campos numéricos somente com valores
C27: Temperatura ambiente (ºC) | K27: 25
C28: Densidade do produto (g/cm3) | K28: 0.95
C29: Peso Líquido do Big Bag cheio (kg) | K29: 2000
C30: Diametro do Duto de Exaustão | K30: 10"
C31: J Distância Piso-Silo (mm) | K31: 3000
C34: BIG BAG | K34: Exemplo | P34: Real
C35: Tipo de Big Bag | K35: RETANGULAR | P35: SELECIONE ▼
C36: A Diâmetro ou largura big bag (mm) | K36: 1000
C37: B Altura do big bag (mm) | K37: 1000
C38: C Altura da boca do big bag (mm) | K38: 400
C39: D Diâmetro da boca do big bag (mm) | K39: 400
C40: E Comprimento da alça (mm) | K40: 250
C41: F Distância entre alças (mm) | K41: 500
E42: CASO O PROCESSO TENHA MAIS DE UM TIPO DE BIG BAG
C45: PALLET | K45: Exemplo | P45: Real
C46: G Comprimento do pallet (mm) | K46: 1000
C47: H Largura do pallet (mm) | K47: 1000
C48: I Altura do pallet (mm) | K48: 150
C51: ENSACADOR DE BIG BAG | K51: Exemplo | P51: Real
C52: Diâmetro do duto de aliementação (mm) | K52: 6" (152,4 mm) | P52: SELECIONE ▼
C53: Tipo de Automação | K53: PAINEL IHM + TRANSMISSOR | P53: SELECIONE ▼
C54: Tipo de Comunicação (Nota 1) | K54: DeviceNet + 4-20mA | P54: SELECIONE ▼
C55: Fixação do painel | K55: COM PEDESTAL | P55: SELECIONE ▼
C56: Comprimento Cabo Ensacador - Painel IHM (m) | K56: 50 m | P56: SELECIONE ▼
C57: Sistema para Pré Insuflamento do Big Bag | K57: SIM | P57: SELECIONE ▼
C58: Mesa Vibratória | K58: SIM | P58: SELECIONE ▼
K59: =IF(PRE_SELEÇÃO_AREA="CLASSIFICADA","GERAL_LISTA_CLASSIFICADA", IF(PRE_SELEÇÃO_AREA="SEGURA","GERAL_LISTA_SEGURA","")) ->  | P59: =IF(PRE_SELEÇÃO_AUTOMAÇÃO="Indicador Linha 3000","GERAL_INDICADOR", IF(PRE_SELEÇÃO_AUTOMAÇÃO="PAINEL IHM + TRANSMISSOR","TAB_FIELDBUS[DESCRIÇÃO]", IF(PRE_SELEÇÃO_AUTOMAÇÃO="CAIXA Exd COM DISPLAY","GERAL_INDICADOR", IF(PRE_SELEÇÃO_AUTOMAÇÃO="CAIXA Exd + PAINEL IHM","TAB_FIELDBUS[DESCRIÇÃO]", """")))) -> "
C60: Nota1: O protocolo ModBus TCP via Ethernet é nativo no painel de comando.
C62: Laudo Técnico NR-10 e NR-12 | K62: SIM | P62: SELECIONE ▼
C64: CÓDIGO DE ENCOMENDA | O64: =IFERROR( _xlfn.CONCAT("ENS2", _xlfn.XLOOKUP(PRE_SELEÇÃO_DUTO,SUSP_TAB_DUTO[DESCRIÇÃO],SUSP_TAB_DUTO[MODELOS]), _xlfn.XLOOKUP(_xlfn.CONCAT(PRE_SELEÇÃO_AUTOMAÇÃO,"+",PRE_SELEÇÃO_COMUNICAÇÃO,"+",PRE_SELEÇÃO_CABO,"+",PRE_SELEÇÃO_FIX_PAINEL),TAB_COMBINAÇÕES[COMBINAÇÃO],TAB_COMBINAÇÕES[CÓDIGO]), _xlfn.XLOOKUP(PRE_SELEÇÃO_AREA,GERAL_TAB_AREA[DESCRIÇÃO],GERAL_TAB_AREA[CÓDIGO]), _xlfn.XLOOKUP(PRE_SELEÇÃO_INSU,GERAL_TAB_INSU[DESCRIÇÃO],GERAL_TAB_INSU[CÓDIGO]), _xlfn.XLOOKUP(PRE_SELEÇÃO_VIBR,GERAL_TAB_INSU[DESCRIÇÃO],GERAL_TAB_INSU[CÓDIGO]), _xlfn.XLOOKUP(PRE_SELEÇÃO_LAUDO,GERAL_TAB_LAUDO[DESCRIÇÃO],GERAL_TAB_LAUDO[CÓDIGO])),"PREENCHA TODOS OS CAMPOS") -> PREENCHA TODOS OS CAMPOS
AD65: INFORMAÇÕES IMPORTANTES
B67: Comentários: | AD67: - CONSUMO DE AR DO BOCAL INFLÁVEL 6L/CICLO.
AD68: - PARA UTILIZAR O BOCAL INFLÁVEL É NECESSÁRIO QUE O DIÂMETRO DA BOCA DO BIG BAG SEJA MAIOR QUE 400mm.
AD70: Preencha nos comentários qual a Zona, Grupo e Temperatura da Área Classificada. Em caso de dúvida, consultar nossa EAP M
AD77: Necessário:
AH78: Ponto de elétrica p/ painel da IHM, tensão 127/220 Vac (cabo de energia do painel: 2 m c/ plug 3 pinos NBR 14136). Necessário ponto de ar comprimido para instalação do equipamento com pressão entre 6 e 8 bar.
C81: Alfa Instrumentos R. Cel Mário de Azevedo, 138 - São Paulo-SP - Brasil - CEP 02710-020 F: (11) 3952-2299 - SAC: 0800-772-2910
C82: vendas@alfainstrumentos.com.br - www.alfainstrumentos.com.br
Z83: =PISO!Z85 -> 0026PR04 | BB83: =Z83 -> 0026PR04

Sheet BIG BAG (hidden)
C6: Informações do CLIENTE
C7: Empresa:
C8: Unidade: | O8: CNPJ:
C9: Divisão: | O9: Setor
C10: Endereço: | X10: CEP:
C11: Bairro: | O11: Cidade: | X11: UF:
C12: Contato:
C13: Setor | O13: Cargo:
C14: e-mail: | O14: Telefone: | U14: Celular:
F17: Quantos tipos de Big Bag são usados no processo? | O17: 1
F19: .
F20: BIG BAG | N20: Exemplo | S20: Real
F21: Tipo de Big Bag | N21: RETANGULAR | S21: SELECIONE ▼
F22: A Diâmetro ou largura big bag (mm) | N22: 1000
F23: B Altura do big bag (mm) | N23: 1000
F24: C Altura da boca do big bag (mm) | N24: 400
F25: D Diâmetro da boca do big bag (mm) | N25: 350
F26: E Comprimento da alça (mm) | N26: 250
F27: F Distância entre alças (mm) | N27: 500
F28: .
F29: BIG BAG 1 | N29: Exemplo | S29: Real
F30: Tipo de Big Bag | N30: RETANGULAR
F31: A Diâmetro ou largura big bag (mm) | N31: 1000
F32: B Altura do big bag (mm) | N32: 1000
F33: C Altura da boca do big bag (mm) | N33: 400
F34: D Diâmetro da boca do big bag (mm) | N34: 350
F35: E Comprimento da alça (mm) | N35: 250
F36: F Distância entre alças (mm) | N36: 500

Sheet SUSPENSO 6125 (hidden)
Z2: PG 1 / 2 | BB2: PG 2 / 2
E3: FOLHA DE DADOS: ENSACADOR DE BIG BAG - SUSPENSO 6125 | AG3: FOLHA DE DADOS: ENSACADOR DE BIG BAG - SUSPENSO 6125
AD4: DIMENSÕES DO BIG BAG E ESTRUTURA
C5: Proposta Comercial nº: | O5: Revisão: | T5: Data:
C8: Informações do CLIENTE
C9: Empresa:
C10: Unidade: | O10: CNPJ:
C11: Divisão: | O11: Setor
C12: Endereço: | X12: CEP:
C13: Bairro: | O13: Cidade: | X13: UF:
C14: Contato:
C15: Setor | O15: Cargo:
C16: e-mail: | O16: Telefone: | U16: Celular:
C19: PROCESSO | K19: Exemplo | P19: Real
C20: Produto | K20: AÇÚCAR
C21: Origem do material | K21: SILO
C22: Transporte do material para o Ensacador | K22: GRAVIDADE | P22: SELECIONE ▼
C23: Retirada do bag (carro manual/paleteira/outros) | K23: PALETEIRA | P23: SELECIONE ▼
C24: Área de ensacamento (segura/classificada) | K24: SEGURA | P24: SELECIONE ▼
C25: Intertravamento com CLP externo | K25: NÃO | P25: SELECIONE ▼
C26: Temperatura do produto (ºC) | K26: 30 | U26: Preencher os campos numéricos somente com valores
C27: Temperatura ambiente (ºC) | K27: 25
C28: Densidade do produto (g/cm3) | K28: 0.95
C29: Peso Líquido do Big Bag cheio (kg) | K29: 2000
C30: Diametro do Duto de Exaustão | K30: 10"
C31: J Distância Piso-Silo (mm) | K31: 3000
C34: BIG BAG | K34: Exemplo | P34: Real
C35: Tipo de Big Bag | K35: RETANGULAR | P35: SELECIONE ▼
C36: A Diâmetro ou largura big bag (mm) | K36: 1000
C37: B Altura do big bag (mm) | K37: 1000
C38: C Altura da boca do big bag (mm) | K38: 400
C39: D Diâmetro da boca do big bag (mm) | K39: 400
C40: E Comprimento da alça (mm) | K40: 250
C41: F Distância entre alças (mm) | K41: 500
E42: CASO O PROCESSO TENHA MAIS DE UM TIPO DE BIG BAG
C45: PALLET | K45: Exemplo | P45: Real
C46: G Comprimento do pallet (mm) | K46: 1000
C47: H Largura do pallet (mm) | K47: 1000
C48: I Altura do pallet (mm) | K48: 150
C51: ENSACADOR DE BIG BAG | K51: Exemplo | P51: Real
C52: Tipo de Válvula de Bloqueio | K52: GUILHOTINA ALIMENTÍCIA | P52: SELECIONE ▼
C53: Diâmetro do duto de aliementação (mm) | K53: 6" (152,4 mm) | P53: SELECIONE ▼
C54: Tipo de Automação | K54: PAINEL IHM + TRANSMISSOR | P54: SELECIONE ▼
C55: Tipo de Comunicação (Nota 1) | K55: DeviceNet + 4-20mA | P55: SELECIONE ▼
C56: Fixação do painel | K56: COM PEDESTAL | P56: SELECIONE ▼
C57: Comprimento Cabo Ensacador - Painel IHM (m) | K57: 50 m | P57: SELECIONE ▼
C58: Sistema para Pré Insuflamento do Big Bag | K58: SIM | P58: SELECIONE ▼
C59: Mesa Vibratória | K59: SIM | P59: SELECIONE ▼
K60: =IF(SUSP_6125_SELEÇÃO_AREA="CLASSIFICADA","SUSP_6125_LISTA_AUT_CLASS", IF(SUSP_6125_SELEÇÃO_AREA="SEGURA","SUSP_6125_LISTA_AUT_SEG","")) -> 
C61: Nota1: O protocolo ModBus TCP via Ethernet é nativo no painel de comando.
C63: Laudo Técnico NR-10 e NR-12 | K63: SIM | P63: SELECIONE ▼
C65: CÓDIGO DE ENCOMENDA | O65: =IFERROR(IF(SUSP_6125_SELEÇÃO_MATERIAL_CONSTRUÇÃO="","", _xlfn.CONCAT("ENS5", _xlfn.XLOOKUP(SUSP_6125_SELEÇÃO_VALVULA,GERAL_TAB_VALV[DESCRIÇÃO],GERAL_TAB_VALV[MODELOS]), _xlfn.XLOOKUP(SUSP_6125_SELEÇÃO_DUTO,SUSP_TAB_DUTO[DESCRIÇÃO],SUSP_TAB_DUTO[MODELOS]), _xlfn.XLOOKUP(_xlfn.CONCAT(SUSP_6125_SELEÇÃO_AUTOMAÇÃO,"+",SUSP_6125_SELEÇÃO_COMUNICAÇÃO,"+",SUSP_6125_SELEÇÃO_CABO,"+",SUSP_6125_SELEÇÃO_FIX_PAINEL),TAB_COMBINAÇÕES[COMBINAÇÃO],TAB_COMBINAÇÕES[CÓDIGO]), _xlfn.XLOOKUP(SUSP_6125_SELEÇÃO_AREA,GERAL_TAB_AREA[DESCRIÇÃO],GERAL_TAB_AREA[MODELOS]), _xlfn.XLOOKUP(SUSP_6125_SELEÇÃO_INSU,GERAL_TAB_INSU[DESCRIÇÃO],GERAL_TAB_INSU[MODELOS]), _xlfn.XLOOKUP(SUSP_6125_SELEÇÃO_VIBR,GERAL_TAB_INSU[DESCRIÇÃO],GERAL_TAB_INSU[MODELOS]), _xlfn.XLOOKUP(SUSP_6125_SELEÇÃO_LAUDO,GERAL_TAB_LAUDO[DESCRIÇÃO],GERAL_TAB_LAUDO[MODELOS]))),"PREENCHA TODOS OS CAMPOS") -> PREENCHA TODOS OS CAMPOS
AD66: INFORMAÇÕES IMPORTANTES
B68: Comentários: | AD68: - CONSUMO DE AR DO BOCAL INFLÁVEL 6L/CICLO.
AD69: - PARA UTILIZAR O BOCAL INFLÁVEL É NECESSÁRIO QUE O DIÂMETRO DA BOCA DO BIG BAG SEJA MAIOR QUE 400mm.
AD78: Necessário:
AH79: Ponto de elétrica p/ painel da IHM, tensão 127/220 Vac (cabo de energia do painel: 2 m c/ plug 3 pinos NBR 14136). Necessário ponto de ar comprimido para instalação do equipamento com pressão entre 6 e 8 bar.
C82: Alfa Instrumentos R. Cel Mário de Azevedo, 138 - São Paulo-SP - Brasil - CEP 02710-020 F: (11) 3952-2299 - SAC: 0800-772-2910
C83: vendas@alfainstrumentos.com.br - www.alfainstrumentos.com.br | AE83: vendas@alfainstrumentos.com.br - www.alfainstrumentos.com.br
Z84: =PISO!Z85 -> 0026PR04 | BB84: =Z84 -> 0026PR04

Sheet DADOS (hidden)
C3: GERAL
C5: QUANTIDADE DE CABO
C6: DESCRIÇÃO | D6: MODELOS | E6: CÓDIGO | F6: DESC. SIMP | G6: DESC. COMP | H6: CUSTO
C7: SEM CABO | D7: 000 | E7: 0
C8: 10 m | D8: 010 | E8: 1
C9: 20 m | D9: 020 | E9: 2
C10: 50 m | D10: 050 | E10: 3
C11: 100 m | D11: 100 | E11: 4
C12: 200 m | D12: 200 | E12: 5
C13: 300 m | D13: 300 | E13: 6
C14: ----
C16: FIXAÇÃO DO PAINEL
C17: DESCRIÇÃO | D17: MODELOS | E17: CÓDIGO | F17: DESC. SIMP | G17: DESC. COMP | H17: CUSTO
C18: COM PEDESTAL | D18: C/PD | E18: C
C19: SEM PEDESTAL | D19: S/PD | E19: S
C20: ----
C22: TIPO DE BIG BAG
C23: DESCRIÇÃO | D23: MODELOS | E23: CÓDIGO | F23: DESC. SIMP | G23: DESC. COMP | H23: CUSTO
C24: CILINDRICO
C25: RETANGULAR
C26: ----
C28: ESPECIFICAÇÃO DA VÁLVULA
C29: DESCRIÇÃO | D29: MODELOS | E29: CÓDIGO | F29: DESC. SIMP | G29: DESC. COMP | H29: CUSTO
C30: BORBOLETA ALIMENTÍCIA | D30: BO | E30: 1
C31: BORBOLETA USO GERAL | D31: BG | E31: 2
C32: GUILHOTINA ALIMENTÍCIA | D32: GO | E32: 3
C33: GUILHOTINA USO GERAL | D33: GG | E33: 4
C34: SEM VÁLVULA | D34: SV | E34: 0
C35: ----
C37: ÁREA DE ENSACAMENTO
C38: DESCRIÇÃO | D38: MODELOS | E38: CÓDIGO | F38: DESC. SIMP | G38: DESC. COMP | H38: CUSTO
C39: SEGURA | E39: S
C40: CLASSIFICADA | E40: C
C42: SISTEMA DE PRÉ INSUFLAMENTO
C43: DESCRIÇÃO | D43: MODELOS | E43: CÓDIGO | F43: DESC. SIMP | G43: DESC. COMP | H43: CUSTO
C44: SIM | E44: S
C45: NÃO | E45: N
C46: ----
C48: MESA VIBRATÓRIA
C49: DESCRIÇÃO | D49: MODELOS | E49: CÓDIGO | F49: DESC. SIMP | G49: DESC. COMP | H49: CUSTO
C50: SIM | E50: S
C51: NÃO | E51: N
C52: ----
C54: LAUDO TÉCNICO
C55: DESCRIÇÃO | D55: MODELOS | E55: CÓDIGO | F55: DESC. SIMP | G55: DESC. COMP | H55: CUSTO
C56: SIM | E56: S
C57: NÃO | E57: N
C58: ----
C60: RESPOSTA
C61: DESCRIÇÃO | D61: MODELOS | E61: CÓDIGO | F61: DESC. SIMP | G61: DESC. COMP | H61: CUSTO
C62: SIM | E62: S
C63: NÃO | E63: N
C64: ----
C66: TRANSPORTE DO MATERIAL
C67: DESCRIÇÃO | D67: MODELOS | E67: CÓDIGO | F67: DESC. SIMP | G67: DESC. COMP | H67: CUSTO
C68: GRAVIDADE
C69: ROSCA TRANSPORTADORA
C70: OUTROS
C71: ----
C73: RETIRADA DO RECIPIENTE
C74: DESCRIÇÃO | D74: MODELOS | E74: CÓDIGO | F74: DESC. SIMP | G74: DESC. COMP | H74: CUSTO
C75: EMPILHADEIRA
C76: OUTROS
C77: PALETEIRA
C78: TRANSP ROLO LIVRE
C79: TRANSP TRACIONADO
C80: ---- | D80: ---- | E80: ---- | F80: ---- | G80: ----
C82: DIÂMETRO DUTO DE ALIMENTAÇÃO
C83: DESCRIÇÃO | D83: MODELOS | E83: CÓDIGO | F83: DESC. SIMP | G83: DESC. COMP | H83: CUSTO
C84: 6" (152,4 mm) | D84: 06 | E84: 1 | F84: 06
C85: 8" (203,2 mm) | D85: 08 | E85: 2 | F85: 08
C86: 10" (254 mm) | D86: 10 | E86: 3 | F86: 10
C87: 12" (304,8 mm) | D87: 12 | E87: 4 | F87: 12
C88: SEM DUTO | D88: SD | E88: 5 | F88: SD
C89: ----
C91: TIPO DE COMUNICAÇÃO
C92: DESCRIÇÃO | D92: MODELOS | E92: CÓDIGO | F92: DESC. SIMP | G92: DESC. COMP | H92: CUSTO
C93: DeviceNet | E93: 0
C94: DeviceNet + 4-20mA | E94: 1
C95: Ethernet TCP/IP | E95: 2
C96: Ethernet TCP/IP + 4-20mA | E96: 3
C97: EtherNet/IP | E97: 4
C98: EtherNet/IP + 4-20mA | E98: 5
C99: ModBus RTU | E99: 6
C100: ModBus RTU + 4-20mA | E100: 7
C101: ModBus TCP/IP | E101: 8
C102: ModBus TCP/IP + 4-20mA | E102: 9
C103: Profibus | E103: A
C104: Profibus + 4-20mA | E104: B
C105: Profinet | E105: C
C106: Profinet + 4-20mA | E106: D
C107: Sem comunicação | E107: E
C108: Somente 4-20mA | E108: F
C109: ----
C111: DESCRIÇÃO | D111: MODELOS | E111: CÓDIGO | F111: DESC. SIMP | G111: DESC. COMP | H111: CUSTO
C112: INOX
C113: SINTERIZADO
C114: ----
C118: PISO
C120: MODELOS
C121: DESCRIÇÃO | D121: MODELOS | E121: CÓDIGO | F121: DESC. SIMP | G121: DESC. COMP | H121: CUSTO
C122: 6110 | D122: 6110 | E122: 0 | F122: 6110
C123: 6111 | D123: 6111 | E123: 1 | F123: 6111
C125: MATERIAL DE CONSTRUÇÃO
C126: DESCRIÇÃO | D126: MODELOS | E126: CÓDIGO | F126: DESC. SIMP | G126: DESC. COMP | H126: CUSTO
C127: AÇO CARBONO | D127: 6110 | E127: 0 | F127: 6110
C128: AÇO INOX 304 | D128: 6111 | E128: 1 | F128: 6111
C129: ----
C131: FIXAÇÃO DO BOCAL
C132: DESCRIÇÃO | D132: MODELOS | E132: CÓDIGO | F132: DESC. SIMP | G132: DESC. COMP | H132: CUSTO
C133: GRAMPO MECÂNICO | E133: M | F133: GM
C134: INFLÁVEL | E134: I | F134: IN
C135: SEM FIXADOR | E135: O | F135: SF
C136: ----
C138: FIXAÇÃO DA PLATAFORMA
C139: DESCRIÇÃO | D139: MODELOS | E139: CÓDIGO | F139: DESC. SIMP | G139: DESC. COMP | H139: CUSTO
C140: CONTRAMARCO | E140: C | F140: C
C141: COPO POSICIONADOR | E141: K | F141: K
C142: SOMENTE PÉ FLUTUANTE | E142: P | F142: P
C143: ----
C145: PLATAFORMA DE PESAGEM
C146: DESCRIÇÃO | D146: MODELOS | E146: CÓDIGO | F146: DESC. SIMP | G146: DESC. COMP | H146: CUSTO
C147: COM MESA DE ROLETES | E147: R | F147: R
C148: COM TAMPO LISO | E148: L | F148: L
C149: COM TRILHO | E149: T | F149: T | M149: DISTÂNCIA EIXO LIBERADOR ATÉ TOPO DO DUTO | P149: 482
C150: ---- | M150: ADAPTADOR DE MANGOTE | P150: 142
C152: COM MESA VIBRATÓRIA | E152: V | F152: V | M152: ROL+CONT+GUIL | P152: =SUM( _xlfn.XLOOKUP("COM MESA DE ROLETES",PISO_TAB_MEDIDA_K[DESCRIÇÃO],PISO_TAB_MEDIDA_K[CÓDIGO]), _xlfn.XLOOKUP("CONTRAMARCO",PISO_TAB_MEDIDA_K[DESCRIÇÃO],PISO_TAB_MEDIDA_K[CÓDIGO]), _xlfn.XLOOKUP("GUIL",PISO_TAB_MEDIDA_K[DESCRIÇÃO],PISO_TAB_MEDIDA_K[CÓDIGO]),$P$149,$P$150) -> 827
M153: ROL+CONT+BORB | P153: =SUM( _xlfn.XLOOKUP("COM MESA DE ROLETES",PISO_TAB_MEDIDA_K[DESCRIÇÃO],PISO_TAB_MEDIDA_K[CÓDIGO]), _xlfn.XLOOKUP("CONTRAMARCO",PISO_TAB_MEDIDA_K[DESCRIÇÃO],PISO_TAB_MEDIDA_K[CÓDIGO]), _xlfn.XLOOKUP("BORB",PISO_TAB_MEDIDA_K[DESCRIÇÃO],PISO_TAB_MEDIDA_K[CÓDIGO]),$P$149,$P$150) -> 796
C154: VALORES PARA CALCULAR MEDIDA K | M154: ROL+CONT+SEM | P154: =SUM( _xlfn.XLOOKUP("COM MESA DE ROLETES",PISO_TAB_MEDIDA_K[DESCRIÇÃO],PISO_TAB_MEDIDA_K[CÓDIGO]), _xlfn.XLOOKUP("CONTRAMARCO",PISO_TAB_MEDIDA_K[DESCRIÇÃO],PISO_TAB_MEDIDA_K[CÓDIGO]), _xlfn.XLOOKUP("SEM",PISO_TAB_MEDIDA_K[DESCRIÇÃO],PISO_TAB_MEDIDA_K[CÓDIGO]),$P$149,$P$150) -> 709
C155: DESCRIÇÃO | D155: MODELOS | E155: CÓDIGO | F155: DESC. SIMP | G155: DESC. COMP | H155: CUSTO | M155: ROL+COPO+GUIL | P155: =SUM( _xlfn.XLOOKUP("COM MESA DE ROLETES",PISO_TAB_MEDIDA_K[DESCRIÇÃO],PISO_TAB_MEDIDA_K[CÓDIGO]), _xlfn.XLOOKUP("COPO POSICIONADOR",PISO_TAB_MEDIDA_K[DESCRIÇÃO],PISO_TAB_MEDIDA_K[CÓDIGO]), _xlfn.XLOOKUP("GUIL",PISO_TAB_MEDIDA_K[DESCRIÇÃO],PISO_TAB_MEDIDA_K[CÓDIGO]),$P$149,$P$150) -> 944
C156: COM MESA DE ROLETES | E156: 85 | M156: ROL+COPO+BORB | P156: =SUM( _xlfn.XLOOKUP("COM MESA DE ROLETES",PISO_TAB_MEDIDA_K[DESCRIÇÃO],PISO_TAB_MEDIDA_K[CÓDIGO]), _xlfn.XLOOKUP("COPO POSICIONADOR",PISO_TAB_MEDIDA_K[DESCRIÇÃO],PISO_TAB_MEDIDA_K[CÓDIGO]), _xlfn.XLOOKUP("BORB",PISO_TAB_MEDIDA_K[DESCRIÇÃO],PISO_TAB_MEDIDA_K[CÓDIGO]),$P$149,$P$150) -> 913
C157: COM TAMPO LISO | E157: 0 | M157: ROL+COPO+SEM | P157: =SUM( _xlfn.XLOOKUP("COM MESA DE ROLETES",PISO_TAB_MEDIDA_K[DESCRIÇÃO],PISO_TAB_MEDIDA_K[CÓDIGO]), _xlfn.XLOOKUP("COPO POSICIONADOR",PISO_TAB_MEDIDA_K[DESCRIÇÃO],PISO_TAB_MEDIDA_K[CÓDIGO]), _xlfn.XLOOKUP("SEM",PISO_TAB_MEDIDA_K[DESCRIÇÃO],PISO_TAB_MEDIDA_K[CÓDIGO]),$P$149,$P$150) -> 826
C158: COM TRILHO | E158: 156
C159: CONTRAMARCO | E159: 0 | M159: LIS+CONT+GUIL | P159: =SUM( _xlfn.XLOOKUP("COM TAMPO LISO",PISO_TAB_MEDIDA_K[DESCRIÇÃO],PISO_TAB_MEDIDA_K[CÓDIGO]), _xlfn.XLOOKUP("CONTRAMARCO",PISO_TAB_MEDIDA_K[DESCRIÇÃO],PISO_TAB_MEDIDA_K[CÓDIGO]), _xlfn.XLOOKUP("GUIL",PISO_TAB_MEDIDA_K[DESCRIÇÃO],PISO_TAB_MEDIDA_K[CÓDIGO]),$P$149,$P$150) -> 742
C160: COPO POSICIONADOR | E160: 117 | M160: LIS+CONT+BORB | P160: =SUM( _xlfn.XLOOKUP("COM TAMPO LISO",PISO_TAB_MEDIDA_K[DESCRIÇÃO],PISO_TAB_MEDIDA_K[CÓDIGO]), _xlfn.XLOOKUP("CONTRAMARCO",PISO_TAB_MEDIDA_K[DESCRIÇÃO],PISO_TAB_MEDIDA_K[CÓDIGO]), _xlfn.XLOOKUP("BORB",PISO_TAB_MEDIDA_K[DESCRIÇÃO],PISO_TAB_MEDIDA_K[CÓDIGO]),$P$149,$P$150) -> 711
C161: GUIL | E161: 118 | M161: LIS+CONT+SEM | P161: =SUM( _xlfn.XLOOKUP("COM TAMPO LISO",PISO_TAB_MEDIDA_K[DESCRIÇÃO],PISO_TAB_MEDIDA_K[CÓDIGO]), _xlfn.XLOOKUP("CONTRAMARCO",PISO_TAB_MEDIDA_K[DESCRIÇÃO],PISO_TAB_MEDIDA_K[CÓDIGO]), _xlfn.XLOOKUP("SEM",PISO_TAB_MEDIDA_K[DESCRIÇÃO],PISO_TAB_MEDIDA_K[CÓDIGO]),$P$149,$P$150) -> 624
C162: BORB | E162: 87 | M162: LIS+COPO+GUIL | P162: =SUM( _xlfn.XLOOKUP("COM TAMPO LISO",PISO_TAB_MEDIDA_K[DESCRIÇÃO],PISO_TAB_MEDIDA_K[CÓDIGO]), _xlfn.XLOOKUP("COPO POSICIONADOR",PISO_TAB_MEDIDA_K[DESCRIÇÃO],PISO_TAB_MEDIDA_K[CÓDIGO]), _xlfn.XLOOKUP("GUIL",PISO_TAB_MEDIDA_K[DESCRIÇÃO],PISO_TAB_MEDIDA_K[CÓDIGO]),$P$149,$P$150) -> 859
C163: SEM | E163: 0 | M163: LIS+COPO+BORB | P163: =SUM( _xlfn.XLOOKUP("COM TAMPO LISO",PISO_TAB_MEDIDA_K[DESCRIÇÃO],PISO_TAB_MEDIDA_K[CÓDIGO]), _xlfn.XLOOKUP("COPO POSICIONADOR",PISO_TAB_MEDIDA_K[DESCRIÇÃO],PISO_TAB_MEDIDA_K[CÓDIGO]), _xlfn.XLOOKUP("BORB",PISO_TAB_MEDIDA_K[DESCRIÇÃO],PISO_TAB_MEDIDA_K[CÓDIGO]),$P$149,$P$150) -> 828
C164: ---- | M164: LIS+COPO+SEM | P164: =SUM( _xlfn.XLOOKUP("COM TAMPO LISO",PISO_TAB_MEDIDA_K[DESCRIÇÃO],PISO_TAB_MEDIDA_K[CÓDIGO]), _xlfn.XLOOKUP("COPO POSICIONADOR",PISO_TAB_MEDIDA_K[DESCRIÇÃO],PISO_TAB_MEDIDA_K[CÓDIGO]), _xlfn.XLOOKUP("SEM",PISO_TAB_MEDIDA_K[DESCRIÇÃO],PISO_TAB_MEDIDA_K[CÓDIGO]),$P$149,$P$150) -> 741
C166: TIPO DE AUTOMAÇÃO SEGURA | M166: TRIL+CONT+GUIL | P166: =SUM( _xlfn.XLOOKUP("COM TRILHO",PISO_TAB_MEDIDA_K[DESCRIÇÃO],PISO_TAB_MEDIDA_K[CÓDIGO]), _xlfn.XLOOKUP("CONTRAMARCO",PISO_TAB_MEDIDA_K[DESCRIÇÃO],PISO_TAB_MEDIDA_K[CÓDIGO]), _xlfn.XLOOKUP("GUIL",PISO_TAB_MEDIDA_K[DESCRIÇÃO],PISO_TAB_MEDIDA_K[CÓDIGO]),$P$149,$P$150) -> 898
C167: DESCRIÇÃO | D167: MODELOS | E167: CÓDIGO | F167: DESC. SIMP | G167: DESC. COMP | H167: CUSTO | M167: TRIL+CONT+BORB | P167: =SUM( _xlfn.XLOOKUP("COM TRILHO",PISO_TAB_MEDIDA_K[DESCRIÇÃO],PISO_TAB_MEDIDA_K[CÓDIGO]), _xlfn.XLOOKUP("CONTRAMARCO",PISO_TAB_MEDIDA_K[DESCRIÇÃO],PISO_TAB_MEDIDA_K[CÓDIGO]), _xlfn.XLOOKUP("BORB",PISO_TAB_MEDIDA_K[DESCRIÇÃO],PISO_TAB_MEDIDA_K[CÓDIGO]),$P$149,$P$150) -> 867
C168: PAINEL IHM + TRANSMISSOR | E168: 3 | M168: TRIL+CONT+SEM | P168: =SUM( _xlfn.XLOOKUP("COM TRILHO",PISO_TAB_MEDIDA_K[DESCRIÇÃO],PISO_TAB_MEDIDA_K[CÓDIGO]), _xlfn.XLOOKUP("CONTRAMARCO",PISO_TAB_MEDIDA_K[DESCRIÇÃO],PISO_TAB_MEDIDA_K[CÓDIGO]), _xlfn.XLOOKUP("SEM",PISO_TAB_MEDIDA_K[DESCRIÇÃO],PISO_TAB_MEDIDA_K[CÓDIGO]),$P$149,$P$150) -> 780
C169: INDICADOR LINHA 3000 | E169: 4 | M169: TRIL+COPO+GUIL | P169: =SUM( _xlfn.XLOOKUP("COM TRILHO",PISO_TAB_MEDIDA_K[DESCRIÇÃO],PISO_TAB_MEDIDA_K[CÓDIGO]), _xlfn.XLOOKUP("COPO POSICIONADOR",PISO_TAB_MEDIDA_K[DESCRIÇÃO],PISO_TAB_MEDIDA_K[CÓDIGO]), _xlfn.XLOOKUP("GUIL",PISO_TAB_MEDIDA_K[DESCRIÇÃO],PISO_TAB_MEDIDA_K[CÓDIGO]),$P$149,$P$150) -> 1015
C170: ---- | M170: TRIL+COPO+BORB | P170: =SUM( _xlfn.XLOOKUP("COM TRILHO",PISO_TAB_MEDIDA_K[DESCRIÇÃO],PISO_TAB_MEDIDA_K[CÓDIGO]), _xlfn.XLOOKUP("COPO POSICIONADOR",PISO_TAB_MEDIDA_K[DESCRIÇÃO],PISO_TAB_MEDIDA_K[CÓDIGO]), _xlfn.XLOOKUP("BORB",PISO_TAB_MEDIDA_K[DESCRIÇÃO],PISO_TAB_MEDIDA_K[CÓDIGO]),$P$149,$P$150) -> 984
M171: TRIL+COPO+SEM | P171: =SUM( _xlfn.XLOOKUP("COM TRILHO",PISO_TAB_MEDIDA_K[DESCRIÇÃO],PISO_TAB_MEDIDA_K[CÓDIGO]), _xlfn.XLOOKUP("COPO POSICIONADOR",PISO_TAB_MEDIDA_K[DESCRIÇÃO],PISO_TAB_MEDIDA_K[CÓDIGO]), _xlfn.XLOOKUP("SEM",PISO_TAB_MEDIDA_K[DESCRIÇÃO],PISO_TAB_MEDIDA_K[CÓDIGO]),$P$149,$P$150) -> 897
C172: TIPO DE AUTOMAÇÃO CLASSIFICADA
C173: DESCRIÇÃO | D173: MODELOS | E173: CÓDIGO | F173: DESC. SIMP | G173: DESC. COMP | H173: CUSTO
C174: CAIXA Exd COM DISPLAY | E174: 1
C175: CAIXA Exd + PAINEL IHM | E175: 2
C177: TIPOS DE INDICADORES
C178: DESCRIÇÃO | D178: MODELOS | E178: CÓDIGO | F178: DESC. SIMP | G178: DESC. COMP | H178: CUSTO
C179: INDICADOR 3102C
C180: INDICADOR 3104C
C181: INDICADOR 3107C
C182: INDICADOR 3102CS
C183: INDICADOR 3104CS
C184: INDICADOR 3107CS
C186: SÓ INDICADOR
C187: ModBus RTU
C188: ModBus TCP/IP
C189: Profibus
C190: DeviceNet
C191: EtherNet IP
C192: EtherNet TCP/IP
C193: Profinet
C194: SEM PROTOCOLO
C195: ----
C199: PRÉ PESAGEM
C201: MODELOS
C202: DESCRIÇÃO | D202: MODELOS | E202: CÓDIGO | F202: DESC. SIMP | G202: DESC. COMP | H202: CUSTO
C203: 6122 | D203: 6122 | E203: 2 | F203: 6122
C206: MATERIAL DE CONSTRUÇÃO
C207: DESCRIÇÃO | D207: MODELOS | E207: CÓDIGO | F207: DESC. SIMP | G207: DESC. COMP | H207: CUSTO
C208: AÇO CARBONO | D208: 6122 | E208: 2 | F208: 6122
C209: AÇO INOX 304
C210: ----
C212: DIAMETRO DO DUTO DE EXAUSTÃO
C213: DESCRIÇÃO | D213: MODELOS | E213: CÓDIGO | F213: DESC. SIMP | G213: DESC. COMP | H213: CUSTO
C214: 1/2" (12,7 mm)
C215: 2" (50,8 mm)
C216: 2 1/2" (63,5 mm)
C217: 3" (76,2 mm)
C218: 4" (101,6 mm)
C219: ----
C221: DIÂMETRO DUTO DE ALIEMENTAÇÃO
C222: DESCRIÇÃO | D222: MODELOS | E222: CÓDIGO | F222: DESC. SIMP | G222: DESC. COMP | H222: CUSTO
C223: 6" (152,4 mm) | D223: 06 | E223: 1 | F223: 06
C224: 8" (203,2 mm) | D224: 08 | E224: 2 | F224: 08
C225: 10" (254 mm) | D225: 10 | E225: 3 | F225: 10
C226: 12" (304,8 mm) | D226: 12 | E226: 4 | F226: 12
C227: ----
C228: TIPO DE AUTOMAÇÃO SEGURA
C229: DESCRIÇÃO | D229: MODELOS | E229: CÓDIGO | F229: DESC. SIMP | G229: DESC. COMP | H229: CUSTO
C230: PAINEL IHM + TRANSMISSOR | E230: 3
C231: ----
C234: TIPO DE AUTOMAÇÃO CLASSIFICADA
C235: DESCRIÇÃO | D235: MODELOS | E235: CÓDIGO | F235: DESC. SIMP | G235: DESC. COMP | H235: CUSTO
C236: CAIXA Exd + PAINEL IHM | E236: 2
C237: PAINEL IHM + TRANSMISSOR | E237: 3
C238: ----
... 66 more rows

Sheet COMBINAÇÃO PAINEL (hidden)
B3: AUTOMAÇÃO | C3: COMUNICAÇÃO | D3: CABO | E3: FIXAÇÃO | F3: COMBINAÇÃO | G3: CÓDIGO
B4: CAIXA Exd + PAINEL IHM | C4: DeviceNet | D4: SEM CABO | E4: COM PEDESTAL | F4: =_xlfn.CONCAT(TAB_COMBINAÇÕES[[#This Row],[AUTOMAÇÃO]],"+",TAB_COMBINAÇÕES[[#This Row],[COMUNICAÇÃO]],"+",TAB_COMBINAÇÕES[[#This Row],[CABO]],"+",TAB_COMBINAÇÕES[[#This Row],[FIXAÇÃO]]) -> CAIXA Exd + PAINEL IHM+DeviceNet+SEM CABO+COM PEDESTAL | G4: 00
B5: CAIXA Exd + PAINEL IHM | C5: DeviceNet | D5: 10 m | E5: COM PEDESTAL | F5: =_xlfn.CONCAT(TAB_COMBINAÇÕES[[#This Row],[AUTOMAÇÃO]],"+",TAB_COMBINAÇÕES[[#This Row],[COMUNICAÇÃO]],"+",TAB_COMBINAÇÕES[[#This Row],[CABO]],"+",TAB_COMBINAÇÕES[[#This Row],[FIXAÇÃO]]) -> CAIXA Exd + PAINEL IHM+DeviceNet+10 m+COM PEDESTAL | G5: 01
B6: CAIXA Exd + PAINEL IHM | C6: DeviceNet | D6: 20 m | E6: COM PEDESTAL | F6: =_xlfn.CONCAT(TAB_COMBINAÇÕES[[#This Row],[AUTOMAÇÃO]],"+",TAB_COMBINAÇÕES[[#This Row],[COMUNICAÇÃO]],"+",TAB_COMBINAÇÕES[[#This Row],[CABO]],"+",TAB_COMBINAÇÕES[[#This Row],[FIXAÇÃO]]) -> CAIXA Exd + PAINEL IHM+DeviceNet+20 m+COM PEDESTAL | G6: 02
B7: CAIXA Exd + PAINEL IHM | C7: DeviceNet | D7: 50 m | E7: COM PEDESTAL | F7: =_xlfn.CONCAT(TAB_COMBINAÇÕES[[#This Row],[AUTOMAÇÃO]],"+",TAB_COMBINAÇÕES[[#This Row],[COMUNICAÇÃO]],"+",TAB_COMBINAÇÕES[[#This Row],[CABO]],"+",TAB_COMBINAÇÕES[[#This Row],[FIXAÇÃO]]) -> CAIXA Exd + PAINEL IHM+DeviceNet+50 m+COM PEDESTAL | G7: 03
B8: CAIXA Exd + PAINEL IHM | C8: DeviceNet | D8: 100 m | E8: COM PEDESTAL | F8: =_xlfn.CONCAT(TAB_COMBINAÇÕES[[#This Row],[AUTOMAÇÃO]],"+",TAB_COMBINAÇÕES[[#This Row],[COMUNICAÇÃO]],"+",TAB_COMBINAÇÕES[[#This Row],[CABO]],"+",TAB_COMBINAÇÕES[[#This Row],[FIXAÇÃO]]) -> CAIXA Exd + PAINEL IHM+DeviceNet+100 m+COM PEDESTAL | G8: 04
B9: CAIXA Exd + PAINEL IHM | C9: DeviceNet | D9: 200 m | E9: COM PEDESTAL | F9: =_xlfn.CONCAT(TAB_COMBINAÇÕES[[#This Row],[AUTOMAÇÃO]],"+",TAB_COMBINAÇÕES[[#This Row],[COMUNICAÇÃO]],"+",TAB_COMBINAÇÕES[[#This Row],[CABO]],"+",TAB_COMBINAÇÕES[[#This Row],[FIXAÇÃO]]) -> CAIXA Exd + PAINEL IHM+DeviceNet+200 m+COM PEDESTAL | G9: 05
B10: CAIXA Exd + PAINEL IHM | C10: DeviceNet | D10: 300 m | E10: COM PEDESTAL | F10: =_xlfn.CONCAT(TAB_COMBINAÇÕES[[#This Row],[AUTOMAÇÃO]],"+",TAB_COMBINAÇÕES[[#This Row],[COMUNICAÇÃO]],"+",TAB_COMBINAÇÕES[[#This Row],[CABO]],"+",TAB_COMBINAÇÕES[[#This Row],[FIXAÇÃO]]) -> CAIXA Exd + PAINEL IHM+DeviceNet+300 m+COM PEDESTAL | G10: 06
B11: CAIXA Exd + PAINEL IHM | C11: DeviceNet + 4-20mA | D11: SEM CABO | E11: COM PEDESTAL | F11: =_xlfn.CONCAT(TAB_COMBINAÇÕES[[#This Row],[AUTOMAÇÃO]],"+",TAB_COMBINAÇÕES[[#This Row],[COMUNICAÇÃO]],"+",TAB_COMBINAÇÕES[[#This Row],[CABO]],"+",TAB_COMBINAÇÕES[[#This Row],[FIXAÇÃO]]) -> CAIXA Exd + PAINEL IHM+DeviceNet + 4-20mA+SEM CABO+COM PEDESTAL | G11: 07
B12: CAIXA Exd + PAINEL IHM | C12: DeviceNet + 4-20mA | D12: 10 m | E12: COM PEDESTAL | F12: =_xlfn.CONCAT(TAB_COMBINAÇÕES[[#This Row],[AUTOMAÇÃO]],"+",TAB_COMBINAÇÕES[[#This Row],[COMUNICAÇÃO]],"+",TAB_COMBINAÇÕES[[#This Row],[CABO]],"+",TAB_COMBINAÇÕES[[#This Row],[FIXAÇÃO]]) -> CAIXA Exd + PAINEL IHM+DeviceNet + 4-20mA+10 m+COM PEDESTAL | G12: 08
B13: CAIXA Exd + PAINEL IHM | C13: DeviceNet + 4-20mA | D13: 20 m | E13: COM PEDESTAL | F13: =_xlfn.CONCAT(TAB_COMBINAÇÕES[[#This Row],[AUTOMAÇÃO]],"+",TAB_COMBINAÇÕES[[#This Row],[COMUNICAÇÃO]],"+",TAB_COMBINAÇÕES[[#This Row],[CABO]],"+",TAB_COMBINAÇÕES[[#This Row],[FIXAÇÃO]]) -> CAIXA Exd + PAINEL IHM+DeviceNet + 4-20mA+20 m+COM PEDESTAL | G13: 09
B14: CAIXA Exd + PAINEL IHM | C14: DeviceNet + 4-20mA | D14: 50 m | E14: COM PEDESTAL | F14: =_xlfn.CONCAT(TAB_COMBINAÇÕES[[#This Row],[AUTOMAÇÃO]],"+",TAB_COMBINAÇÕES[[#This Row],[COMUNICAÇÃO]],"+",TAB_COMBINAÇÕES[[#This Row],[CABO]],"+",TAB_COMBINAÇÕES[[#This Row],[FIXAÇÃO]]) -> CAIXA Exd + PAINEL IHM+DeviceNet + 4-20mA+50 m+COM PEDESTAL | G14: 10
B15: CAIXA Exd + PAINEL IHM | C15: DeviceNet + 4-20mA | D15: 100 m | E15: COM PEDESTAL | F15: =_xlfn.CONCAT(TAB_COMBINAÇÕES[[#This Row],[AUTOMAÇÃO]],"+",TAB_COMBINAÇÕES[[#This Row],[COMUNICAÇÃO]],"+",TAB_COMBINAÇÕES[[#This Row],[CABO]],"+",TAB_COMBINAÇÕES[[#This Row],[FIXAÇÃO]]) -> CAIXA Exd + PAINEL IHM+DeviceNet + 4-20mA+100 m+COM PEDESTAL | G15: 11
B16: CAIXA Exd + PAINEL IHM | C16: DeviceNet + 4-20mA | D16: 200 m | E16: COM PEDESTAL | F16: =_xlfn.CONCAT(TAB_COMBINAÇÕES[[#This Row],[AUTOMAÇÃO]],"+",TAB_COMBINAÇÕES[[#This Row],[COMUNICAÇÃO]],"+",TAB_COMBINAÇÕES[[#This Row],[CABO]],"+",TAB_COMBINAÇÕES[[#This Row],[FIXAÇÃO]]) -> CAIXA Exd + PAINEL IHM+DeviceNet + 4-20mA+200 m+COM PEDESTAL | G16: 12
B17: CAIXA Exd + PAINEL IHM | C17: DeviceNet + 4-20mA | D17: 300 m | E17: COM PEDESTAL | F17: =_xlfn.CONCAT(TAB_COMBINAÇÕES[[#This Row],[AUTOMAÇÃO]],"+",TAB_COMBINAÇÕES[[#This Row],[COMUNICAÇÃO]],"+",TAB_COMBINAÇÕES[[#This Row],[CABO]],"+",TAB_COMBINAÇÕES[[#This Row],[FIXAÇÃO]]) -> CAIXA Exd + PAINEL IHM+DeviceNet + 4-20mA+300 m+COM PEDESTAL | G17: 13
B18: CAIXA Exd + PAINEL IHM | C18: Ethernet TCP/IP | D18: SEM CABO | E18: COM PEDESTAL | F18: =_xlfn.CONCAT(TAB_COMBINAÇÕES[[#This Row],[AUTOMAÇÃO]],"+",TAB_COMBINAÇÕES[[#This Row],[COMUNICAÇÃO]],"+",TAB_COMBINAÇÕES[[#This Row],[CABO]],"+",TAB_COMBINAÇÕES[[#This Row],[FIXAÇÃO]]) -> CAIXA Exd + PAINEL IHM+Ethernet TCP/IP+SEM CABO+COM PEDESTAL | G18: 14
B19: CAIXA Exd + PAINEL IHM | C19: Ethernet TCP/IP | D19: 10 m | E19: COM PEDESTAL | F19: =_xlfn.CONCAT(TAB_COMBINAÇÕES[[#This Row],[AUTOMAÇÃO]],"+",TAB_COMBINAÇÕES[[#This Row],[COMUNICAÇÃO]],"+",TAB_COMBINAÇÕES[[#This Row],[CABO]],"+",TAB_COMBINAÇÕES[[#This Row],[FIXAÇÃO]]) -> CAIXA Exd + PAINEL IHM+Ethernet TCP/IP+10 m+COM PEDESTAL | G19: 15
B20: CAIXA Exd + PAINEL IHM | C20: Ethernet TCP/IP | D20: 20 m | E20: COM PEDESTAL | F20: =_xlfn.CONCAT(TAB_COMBINAÇÕES[[#This Row],[AUTOMAÇÃO]],"+",TAB_COMBINAÇÕES[[#This Row],[COMUNICAÇÃO]],"+",TAB_COMBINAÇÕES[[#This Row],[CABO]],"+",TAB_COMBINAÇÕES[[#This Row],[FIXAÇÃO]]) -> CAIXA Exd + PAINEL IHM+Ethernet TCP/IP+20 m+COM PEDESTAL | G20: 16
B21: CAIXA Exd + PAINEL IHM | C21: Ethernet TCP/IP | D21: 50 m | E21: COM PEDESTAL | F21: =_xlfn.CONCAT(TAB_COMBINAÇÕES[[#This Row],[AUTOMAÇÃO]],"+",TAB_COMBINAÇÕES[[#This Row],[COMUNICAÇÃO]],"+",TAB_COMBINAÇÕES[[#This Row],[CABO]],"+",TAB_COMBINAÇÕES[[#This Row],[FIXAÇÃO]]) -> CAIXA Exd + PAINEL IHM+Ethernet TCP/IP+50 m+COM PEDESTAL | G21: 17
B22: CAIXA Exd + PAINEL IHM | C22: Ethernet TCP/IP | D22: 100 m | E22: COM PEDESTAL | F22: =_xlfn.CONCAT(TAB_COMBINAÇÕES[[#This Row],[AUTOMAÇÃO]],"+",TAB_COMBINAÇÕES[[#This Row],[COMUNICAÇÃO]],"+",TAB_COMBINAÇÕES[[#This Row],[CABO]],"+",TAB_COMBINAÇÕES[[#This Row],[FIXAÇÃO]]) -> CAIXA Exd + PAINEL IHM+Ethernet TCP/IP+100 m+COM PEDESTAL | G22: 18
B23: CAIXA Exd + PAINEL IHM | C23: Ethernet TCP/IP | D23: 200 m | E23: COM PEDESTAL | F23: =_xlfn.CONCAT(TAB_COMBINAÇÕES[[#This Row],[AUTOMAÇÃO]],"+",TAB_COMBINAÇÕES[[#This Row],[COMUNICAÇÃO]],"+",TAB_COMBINAÇÕES[[#This Row],[CABO]],"+",TAB_COMBINAÇÕES[[#This Row],[FIXAÇÃO]]) -> CAIXA Exd + PAINEL IHM+Ethernet TCP/IP+200 m+COM PEDESTAL | G23: 19
B24: CAIXA Exd + PAINEL IHM | C24: Ethernet TCP/IP | D24: 300 m | E24: COM PEDESTAL | F24: =_xlfn.CONCAT(TAB_COMBINAÇÕES[[#This Row],[AUTOMAÇÃO]],"+",TAB_COMBINAÇÕES[[#This Row],[COMUNICAÇÃO]],"+",TAB_COMBINAÇÕES[[#This Row],[CABO]],"+",TAB_COMBINAÇÕES[[#This Row],[FIXAÇÃO]]) -> CAIXA Exd + PAINEL IHM+Ethernet TCP/IP+300 m+COM PEDESTAL | G24: 20
B25: CAIXA Exd + PAINEL IHM | C25: Ethernet TCP/IP + 4-20mA | D25: SEM CABO | E25: COM PEDESTAL | F25: =_xlfn.CONCAT(TAB_COMBINAÇÕES[[#This Row],[AUTOMAÇÃO]],"+",TAB_COMBINAÇÕES[[#This Row],[COMUNICAÇÃO]],"+",TAB_COMBINAÇÕES[[#This Row],[CABO]],"+",TAB_COMBINAÇÕES[[#This Row],[FIXAÇÃO]]) -> CAIXA Exd + PAINEL IHM+Ethernet TCP/IP + 4-20mA+SEM CABO+COM PEDESTAL | G25: 21
B26: CAIXA Exd + PAINEL IHM | C26: Ethernet TCP/IP + 4-20mA | D26: 10 m | E26: COM PEDESTAL | F26: =_xlfn.CONCAT(TAB_COMBINAÇÕES[[#This Row],[AUTOMAÇÃO]],"+",TAB_COMBINAÇÕES[[#This Row],[COMUNICAÇÃO]],"+",TAB_COMBINAÇÕES[[#This Row],[CABO]],"+",TAB_COMBINAÇÕES[[#This Row],[FIXAÇÃO]]) -> CAIXA Exd + PAINEL IHM+Ethernet TCP/IP + 4-20mA+10 m+COM PEDESTAL | G26: 22
B27: CAIXA Exd + PAINEL IHM | C27: Ethernet TCP/IP + 4-20mA | D27: 20 m | E27: COM PEDESTAL | F27: =_xlfn.CONCAT(TAB_COMBINAÇÕES[[#This Row],[AUTOMAÇÃO]],"+",TAB_COMBINAÇÕES[[#This Row],[COMUNICAÇÃO]],"+",TAB_COMBINAÇÕES[[#This Row],[CABO]],"+",TAB_COMBINAÇÕES[[#This Row],[FIXAÇÃO]]) -> CAIXA Exd + PAINEL IHM+Ethernet TCP/IP + 4-20mA+20 m+COM PEDESTAL | G27: 23
B28: CAIXA Exd + PAINEL IHM | C28: Ethernet TCP/IP + 4-20mA | D28: 50 m | E28: COM PEDESTAL | F28: =_xlfn.CONCAT(TAB_COMBINAÇÕES[[#This Row],[AUTOMAÇÃO]],"+",TAB_COMBINAÇÕES[[#This Row],[COMUNICAÇÃO]],"+",TAB_COMBINAÇÕES[[#This Row],[CABO]],"+",TAB_COMBINAÇÕES[[#This Row],[FIXAÇÃO]]) -> CAIXA Exd + PAINEL IHM+Ethernet TCP/IP + 4-20mA+50 m+COM PEDESTAL | G28: 24
B29: CAIXA Exd + PAINEL IHM | C29: Ethernet TCP/IP + 4-20mA | D29: 100 m | E29: COM PEDESTAL | F29: =_xlfn.CONCAT(TAB_COMBINAÇÕES[[#This Row],[AUTOMAÇÃO]],"+",TAB_COMBINAÇÕES[[#This Row],[COMUNICAÇÃO]],"+",TAB_COMBINAÇÕES[[#This Row],[CABO]],"+",TAB_COMBINAÇÕES[[#This Row],[FIXAÇÃO]]) -> CAIXA Exd + PAINEL IHM+Ethernet TCP/IP + 4-20mA+100 m+COM PEDESTAL | G29: 25
B30: CAIXA Exd + PAINEL IHM | C30: Ethernet TCP/IP + 4-20mA | D30: 200 m | E30: COM PEDESTAL | F30: =_xlfn.CONCAT(TAB_COMBINAÇÕES[[#This Row],[AUTOMAÇÃO]],"+",TAB_COMBINAÇÕES[[#This Row],[COMUNICAÇÃO]],"+",TAB_COMBINAÇÕES[[#This Row],[CABO]],"+",TAB_COMBINAÇÕES[[#This Row],[FIXAÇÃO]]) -> CAIXA Exd + PAINEL IHM+Ethernet TCP/IP + 4-20mA+200 m+COM PEDESTAL | G30: 26
B31: CAIXA Exd + PAINEL IHM | C31: Ethernet TCP/IP + 4-20mA | D31: 300 m | E31: COM PEDESTAL | F31: =_xlfn.CONCAT(TAB_COMBINAÇÕES[[#This Row],[AUTOMAÇÃO]],"+",TAB_COMBINAÇÕES[[#This Row],[COMUNICAÇÃO]],"+",TAB_COMBINAÇÕES[[#This Row],[CABO]],"+",TAB_COMBINAÇÕES[[#This Row],[FIXAÇÃO]]) -> CAIXA Exd + PAINEL IHM+Ethernet TCP/IP + 4-20mA+300 m+COM PEDESTAL | G31: 27
B32: CAIXA Exd + PAINEL IHM | C32: EtherNet/IP | D32: SEM CABO | E32: COM PEDESTAL | F32: =_xlfn.CONCAT(TAB_COMBINAÇÕES[[#This Row],[AUTOMAÇÃO]],"+",TAB_COMBINAÇÕES[[#This Row],[COMUNICAÇÃO]],"+",TAB_COMBINAÇÕES[[#This Row],[CABO]],"+",TAB_COMBINAÇÕES[[#This Row],[FIXAÇÃO]]) -> CAIXA Exd + PAINEL IHM+EtherNet/IP+SEM CABO+COM PEDESTAL | G32: 28
B33: CAIXA Exd + PAINEL IHM | C33: EtherNet/IP | D33: 10 m | E33: COM PEDESTAL | F33: =_xlfn.CONCAT(TAB_COMBINAÇÕES[[#This Row],[AUTOMAÇÃO]],"+",TAB_COMBINAÇÕES[[#This Row],[COMUNICAÇÃO]],"+",TAB_COMBINAÇÕES[[#This Row],[CABO]],"+",TAB_COMBINAÇÕES[[#This Row],[FIXAÇÃO]]) -> CAIXA Exd + PAINEL IHM+EtherNet/IP+10 m+COM PEDESTAL | G33: 29
B34: CAIXA Exd + PAINEL IHM | C34: EtherNet/IP | D34: 20 m | E34: COM PEDESTAL | F34: =_xlfn.CONCAT(TAB_COMBINAÇÕES[[#This Row],[AUTOMAÇÃO]],"+",TAB_COMBINAÇÕES[[#This Row],[COMUNICAÇÃO]],"+",TAB_COMBINAÇÕES[[#This Row],[CABO]],"+",TAB_COMBINAÇÕES[[#This Row],[FIXAÇÃO]]) -> CAIXA Exd + PAINEL IHM+EtherNet/IP+20 m+COM PEDESTAL | G34: 30
B35: CAIXA Exd + PAINEL IHM | C35: EtherNet/IP | D35: 50 m | E35: COM PEDESTAL | F35: =_xlfn.CONCAT(TAB_COMBINAÇÕES[[#This Row],[AUTOMAÇÃO]],"+",TAB_COMBINAÇÕES[[#This Row],[COMUNICAÇÃO]],"+",TAB_COMBINAÇÕES[[#This Row],[CABO]],"+",TAB_COMBINAÇÕES[[#This Row],[FIXAÇÃO]]) -> CAIXA Exd + PAINEL IHM+EtherNet/IP+50 m+COM PEDESTAL | G35: 31
B36: CAIXA Exd + PAINEL IHM | C36: EtherNet/IP | D36: 100 m | E36: COM PEDESTAL | F36: =_xlfn.CONCAT(TAB_COMBINAÇÕES[[#This Row],[AUTOMAÇÃO]],"+",TAB_COMBINAÇÕES[[#This Row],[COMUNICAÇÃO]],"+",TAB_COMBINAÇÕES[[#This Row],[CABO]],"+",TAB_COMBINAÇÕES[[#This Row],[FIXAÇÃO]]) -> CAIXA Exd + PAINEL IHM+EtherNet/IP+100 m+COM PEDESTAL | G36: 32
B37: CAIXA Exd + PAINEL IHM | C37: EtherNet/IP | D37: 200 m | E37: COM PEDESTAL | F37: =_xlfn.CONCAT(TAB_COMBINAÇÕES[[#This Row],[AUTOMAÇÃO]],"+",TAB_COMBINAÇÕES[[#This Row],[COMUNICAÇÃO]],"+",TAB_COMBINAÇÕES[[#This Row],[CABO]],"+",TAB_COMBINAÇÕES[[#This Row],[FIXAÇÃO]]) -> CAIXA Exd + PAINEL IHM+EtherNet/IP+200 m+COM PEDESTAL | G37: 33
B38: CAIXA Exd + PAINEL IHM | C38: EtherNet/IP | D38: 300 m | E38: COM PEDESTAL | F38: =_xlfn.CONCAT(TAB_COMBINAÇÕES[[#This Row],[AUTOMAÇÃO]],"+",TAB_COMBINAÇÕES[[#This Row],[COMUNICAÇÃO]],"+",TAB_COMBINAÇÕES[[#This Row],[CABO]],"+",TAB_COMBINAÇÕES[[#This Row],[FIXAÇÃO]]) -> CAIXA Exd + PAINEL IHM+EtherNet/IP+300 m+COM PEDESTAL | G38: 34
B39: CAIXA Exd + PAINEL IHM | C39: EtherNet/IP + 4-20mA | D39: SEM CABO | E39: COM PEDESTAL | F39: =_xlfn.CONCAT(TAB_COMBINAÇÕES[[#This Row],[AUTOMAÇÃO]],"+",TAB_COMBINAÇÕES[[#This Row],[COMUNICAÇÃO]],"+",TAB_COMBINAÇÕES[[#This Row],[CABO]],"+",TAB_COMBINAÇÕES[[#This Row],[FIXAÇÃO]]) -> CAIXA Exd + PAINEL IHM+EtherNet/IP + 4-20mA+SEM CABO+COM PEDESTAL | G39: 35
B40: CAIXA Exd + PAINEL IHM | C40: EtherNet/IP + 4-20mA | D40: 10 m | E40: COM PEDESTAL | F40: =_xlfn.CONCAT(TAB_COMBINAÇÕES[[#This Row],[AUTOMAÇÃO]],"+",TAB_COMBINAÇÕES[[#This Row],[COMUNICAÇÃO]],"+",TAB_COMBINAÇÕES[[#This Row],[CABO]],"+",TAB_COMBINAÇÕES[[#This Row],[FIXAÇÃO]]) -> CAIXA Exd + PAINEL IHM+EtherNet/IP + 4-20mA+10 m+COM PEDESTAL | G40: 36
B41: CAIXA Exd + PAINEL IHM | C41: EtherNet/IP + 4-20mA | D41: 20 m | E41: COM PEDESTAL | F41: =_xlfn.CONCAT(TAB_COMBINAÇÕES[[#This Row],[AUTOMAÇÃO]],"+",TAB_COMBINAÇÕES[[#This Row],[COMUNICAÇÃO]],"+",TAB_COMBINAÇÕES[[#This Row],[CABO]],"+",TAB_COMBINAÇÕES[[#This Row],[FIXAÇÃO]]) -> CAIXA Exd + PAINEL IHM+EtherNet/IP + 4-20mA+20 m+COM PEDESTAL | G41: 37
B42: CAIXA Exd + PAINEL IHM | C42: EtherNet/IP + 4-20mA | D42: 50 m | E42: COM PEDESTAL | F42: =_xlfn.CONCAT(TAB_COMBINAÇÕES[[#This Row],[AUTOMAÇÃO]],"+",TAB_COMBINAÇÕES[[#This Row],[COMUNICAÇÃO]],"+",TAB_COMBINAÇÕES[[#This Row],[CABO]],"+",TAB_COMBINAÇÕES[[#This Row],[FIXAÇÃO]]) -> CAIXA Exd + PAINEL IHM+EtherNet/IP + 4-20mA+50 m+COM PEDESTAL | G42: 38
B43: CAIXA Exd + PAINEL IHM | C43: EtherNet/IP + 4-20mA | D43: 100 m | E43: COM PEDESTAL | F43: =_xlfn.CONCAT(TAB_COMBINAÇÕES[[#This Row],[AUTOMAÇÃO]],"+",TAB_COMBINAÇÕES[[#This Row],[COMUNICAÇÃO]],"+",TAB_COMBINAÇÕES[[#This Row],[CABO]],"+",TAB_COMBINAÇÕES[[#This Row],[FIXAÇÃO]]) -> CAIXA Exd + PAINEL IHM+EtherNet/IP + 4-20mA+100 m+COM PEDESTAL | G43: 39
B44: CAIXA Exd + PAINEL IHM | C44: EtherNet/IP + 4-20mA | D44: 200 m | E44: COM PEDESTAL | F44: =_xlfn.CONCAT(TAB_COMBINAÇÕES[[#This Row],[AUTOMAÇÃO]],"+",TAB_COMBINAÇÕES[[#This Row],[COMUNICAÇÃO]],"+",TAB_COMBINAÇÕES[[#This Row],[CABO]],"+",TAB_COMBINAÇÕES[[#This Row],[FIXAÇÃO]]) -> CAIXA Exd + PAINEL IHM+EtherNet/IP + 4-20mA+200 m+COM PEDESTAL | G44: 40
B45: CAIXA Exd + PAINEL IHM | C45: EtherNet/IP + 4-20mA | D45: 300 m | E45: COM PEDESTAL | F45: =_xlfn.CONCAT(TAB_COMBINAÇÕES[[#This Row],[AUTOMAÇÃO]],"+",TAB_COMBINAÇÕES[[#This Row],[COMUNICAÇÃO]],"+",TAB_COMBINAÇÕES[[#This Row],[CABO]],"+",TAB_COMBINAÇÕES[[#This Row],[FIXAÇÃO]]) -> CAIXA Exd + PAINEL IHM+EtherNet/IP + 4-20mA+300 m+COM PEDESTAL | G45: 41
B46: CAIXA Exd + PAINEL IHM | C46: ModBus RTU | D46: SEM CABO | E46: COM PEDESTAL | F46: =_xlfn.CONCAT(TAB_COMBINAÇÕES[[#This Row],[AUTOMAÇÃO]],"+",TAB_COMBINAÇÕES[[#This Row],[COMUNICAÇÃO]],"+",TAB_COMBINAÇÕES[[#This Row],[CABO]],"+",TAB_COMBINAÇÕES[[#This Row],[FIXAÇÃO]]) -> CAIXA Exd + PAINEL IHM+ModBus RTU+SEM CABO+COM PEDESTAL | G46: 42
B47: CAIXA Exd + PAINEL IHM | C47: ModBus RTU | D47: 10 m | E47: COM PEDESTAL | F47: =_xlfn.CONCAT(TAB_COMBINAÇÕES[[#This Row],[AUTOMAÇÃO]],"+",TAB_COMBINAÇÕES[[#This Row],[COMUNICAÇÃO]],"+",TAB_COMBINAÇÕES[[#This Row],[CABO]],"+",TAB_COMBINAÇÕES[[#This Row],[FIXAÇÃO]]) -> CAIXA Exd + PAINEL IHM+ModBus RTU+10 m+COM PEDESTAL | G47: 43
B48: CAIXA Exd + PAINEL IHM | C48: ModBus RTU | D48: 20 m | E48: COM PEDESTAL | F48: =_xlfn.CONCAT(TAB_COMBINAÇÕES[[#This Row],[AUTOMAÇÃO]],"+",TAB_COMBINAÇÕES[[#This Row],[COMUNICAÇÃO]],"+",TAB_COMBINAÇÕES[[#This Row],[CABO]],"+",TAB_COMBINAÇÕES[[#This Row],[FIXAÇÃO]]) -> CAIXA Exd + PAINEL IHM+ModBus RTU+20 m+COM PEDESTAL | G48: 44
B49: CAIXA Exd + PAINEL IHM | C49: ModBus RTU | D49: 50 m | E49: COM PEDESTAL | F49: =_xlfn.CONCAT(TAB_COMBINAÇÕES[[#This Row],[AUTOMAÇÃO]],"+",TAB_COMBINAÇÕES[[#This Row],[COMUNICAÇÃO]],"+",TAB_COMBINAÇÕES[[#This Row],[CABO]],"+",TAB_COMBINAÇÕES[[#This Row],[FIXAÇÃO]]) -> CAIXA Exd + PAINEL IHM+ModBus RTU+50 m+COM PEDESTAL | G49: 45
B50: CAIXA Exd + PAINEL IHM | C50: ModBus RTU | D50: 100 m | E50: COM PEDESTAL | F50: =_xlfn.CONCAT(TAB_COMBINAÇÕES[[#This Row],[AUTOMAÇÃO]],"+",TAB_COMBINAÇÕES[[#This Row],[COMUNICAÇÃO]],"+",TAB_COMBINAÇÕES[[#This Row],[CABO]],"+",TAB_COMBINAÇÕES[[#This Row],[FIXAÇÃO]]) -> CAIXA Exd + PAINEL IHM+ModBus RTU+100 m+COM PEDESTAL | G50: 46
B51: CAIXA Exd + PAINEL IHM | C51: ModBus RTU | D51: 200 m | E51: COM PEDESTAL | F51: =_xlfn.CONCAT(TAB_COMBINAÇÕES[[#This Row],[AUTOMAÇÃO]],"+",TAB_COMBINAÇÕES[[#This Row],[COMUNICAÇÃO]],"+",TAB_COMBINAÇÕES[[#This Row],[CABO]],"+",TAB_COMBINAÇÕES[[#This Row],[FIXAÇÃO]]) -> CAIXA Exd + PAINEL IHM+ModBus RTU+200 m+COM PEDESTAL | G51: 47
B52: CAIXA Exd + PAINEL IHM | C52: ModBus RTU | D52: 300 m | E52: COM PEDESTAL | F52: =_xlfn.CONCAT(TAB_COMBINAÇÕES[[#This Row],[AUTOMAÇÃO]],"+",TAB_COMBINAÇÕES[[#This Row],[COMUNICAÇÃO]],"+",TAB_COMBINAÇÕES[[#This Row],[CABO]],"+",TAB_COMBINAÇÕES[[#This Row],[FIXAÇÃO]]) -> CAIXA Exd + PAINEL IHM+ModBus RTU+300 m+COM PEDESTAL | G52: 48
B53: CAIXA Exd + PAINEL IHM | C53: ModBus RTU + 4-20mA | D53: SEM CABO | E53: COM PEDESTAL | F53: =_xlfn.CONCAT(TAB_COMBINAÇÕES[[#This Row],[AUTOMAÇÃO]],"+",TAB_COMBINAÇÕES[[#This Row],[COMUNICAÇÃO]],"+",TAB_COMBINAÇÕES[[#This Row],[CABO]],"+",TAB_COMBINAÇÕES[[#This Row],[FIXAÇÃO]]) -> CAIXA Exd + PAINEL IHM+ModBus RTU + 4-20mA+SEM CABO+COM PEDESTAL | G53: 49
B54: CAIXA Exd + PAINEL IHM | C54: ModBus RTU + 4-20mA | D54: 10 m | E54: COM PEDESTAL | F54: =_xlfn.CONCAT(TAB_COMBINAÇÕES[[#This Row],[AUTOMAÇÃO]],"+",TAB_COMBINAÇÕES[[#This Row],[COMUNICAÇÃO]],"+",TAB_COMBINAÇÕES[[#This Row],[CABO]],"+",TAB_COMBINAÇÕES[[#This Row],[FIXAÇÃO]]) -> CAIXA Exd + PAINEL IHM+ModBus RTU + 4-20mA+10 m+COM PEDESTAL | G54: 50
B55: CAIXA Exd + PAINEL IHM | C55: ModBus RTU + 4-20mA | D55: 20 m | E55: COM PEDESTAL | F55: =_xlfn.CONCAT(TAB_COMBINAÇÕES[[#This Row],[AUTOMAÇÃO]],"+",TAB_COMBINAÇÕES[[#This Row],[COMUNICAÇÃO]],"+",TAB_COMBINAÇÕES[[#This Row],[CABO]],"+",TAB_COMBINAÇÕES[[#This Row],[FIXAÇÃO]]) -> CAIXA Exd + PAINEL IHM+ModBus RTU + 4-20mA+20 m+COM PEDESTAL | G55: 51
B56: CAIXA Exd + PAINEL IHM | C56: ModBus RTU + 4-20mA | D56: 50 m | E56: COM PEDESTAL | F56: =_xlfn.CONCAT(TAB_COMBINAÇÕES[[#This Row],[AUTOMAÇÃO]],"+",TAB_COMBINAÇÕES[[#This Row],[COMUNICAÇÃO]],"+",TAB_COMBINAÇÕES[[#This Row],[CABO]],"+",TAB_COMBINAÇÕES[[#This Row],[FIXAÇÃO]]) -> CAIXA Exd + PAINEL IHM+ModBus RTU + 4-20mA+50 m+COM PEDESTAL | G56: 52
B57: CAIXA Exd + PAINEL IHM | C57: ModBus RTU + 4-20mA | D57: 100 m | E57: COM PEDESTAL | F57: =_xlfn.CONCAT(TAB_COMBINAÇÕES[[#This Row],[AUTOMAÇÃO]],"+",TAB_COMBINAÇÕES[[#This Row],[COMUNICAÇÃO]],"+",TAB_COMBINAÇÕES[[#This Row],[CABO]],"+",TAB_COMBINAÇÕES[[#This Row],[FIXAÇÃO]]) -> CAIXA Exd + PAINEL IHM+ModBus RTU + 4-20mA+100 m+COM PEDESTAL | G57: 53
B58: CAIXA Exd + PAINEL IHM | C58: ModBus RTU + 4-20mA | D58: 200 m | E58: COM PEDESTAL | F58: =_xlfn.CONCAT(TAB_COMBINAÇÕES[[#This Row],[AUTOMAÇÃO]],"+",TAB_COMBINAÇÕES[[#This Row],[COMUNICAÇÃO]],"+",TAB_COMBINAÇÕES[[#This Row],[CABO]],"+",TAB_COMBINAÇÕES[[#This Row],[FIXAÇÃO]]) -> CAIXA Exd + PAINEL IHM+ModBus RTU + 4-20mA+200 m+COM PEDESTAL | G58: 54
B59: CAIXA Exd + PAINEL IHM | C59: ModBus RTU + 4-20mA | D59: 300 m | E59: COM PEDESTAL | F59: =_xlfn.CONCAT(TAB_COMBINAÇÕES[[#This Row],[AUTOMAÇÃO]],"+",TAB_COMBINAÇÕES[[#This Row],[COMUNICAÇÃO]],"+",TAB_COMBINAÇÕES[[#This Row],[CABO]],"+",TAB_COMBINAÇÕES[[#This Row],[FIXAÇÃO]]) -> CAIXA Exd + PAINEL IHM+ModBus RTU + 4-20mA+300 m+COM PEDESTAL | G59: 55
B60: CAIXA Exd + PAINEL IHM | C60: ModBus TCP/IP | D60: SEM CABO | E60: COM PEDESTAL | F60: =_xlfn.CONCAT(TAB_COMBINAÇÕES[[#This Row],[AUTOMAÇÃO]],"+",TAB_COMBINAÇÕES[[#This Row],[COMUNICAÇÃO]],"+",TAB_COMBINAÇÕES[[#This Row],[CABO]],"+",TAB_COMBINAÇÕES[[#This Row],[FIXAÇÃO]]) -> CAIXA Exd + PAINEL IHM+ModBus TCP/IP+SEM CABO+COM PEDESTAL | G60: 56
B61: CAIXA Exd + PAINEL IHM | C61: ModBus TCP/IP | D61: 10 m | E61: COM PEDESTAL | F61: =_xlfn.CONCAT(TAB_COMBINAÇÕES[[#This Row],[AUTOMAÇÃO]],"+",TAB_COMBINAÇÕES[[#This Row],[COMUNICAÇÃO]],"+",TAB_COMBINAÇÕES[[#This Row],[CABO]],"+",TAB_COMBINAÇÕES[[#This Row],[FIXAÇÃO]]) -> CAIXA Exd + PAINEL IHM+ModBus TCP/IP+10 m+COM PEDESTAL | G61: 57
B62: CAIXA Exd + PAINEL IHM | C62: ModBus TCP/IP | D62: 20 m | E62: COM PEDESTAL | F62: =_xlfn.CONCAT(TAB_COMBINAÇÕES[[#This Row],[AUTOMAÇÃO]],"+",TAB_COMBINAÇÕES[[#This Row],[COMUNICAÇÃO]],"+",TAB_COMBINAÇÕES[[#This Row],[CABO]],"+",TAB_COMBINAÇÕES[[#This Row],[FIXAÇÃO]]) -> CAIXA Exd + PAINEL IHM+ModBus TCP/IP+20 m+COM PEDESTAL | G62: 58
B63: CAIXA Exd + PAINEL IHM | C63: ModBus TCP/IP | D63: 50 m | E63: COM PEDESTAL | F63: =_xlfn.CONCAT(TAB_COMBINAÇÕES[[#This Row],[AUTOMAÇÃO]],"+",TAB_COMBINAÇÕES[[#This Row],[COMUNICAÇÃO]],"+",TAB_COMBINAÇÕES[[#This Row],[CABO]],"+",TAB_COMBINAÇÕES[[#This Row],[FIXAÇÃO]]) -> CAIXA Exd + PAINEL IHM+ModBus TCP/IP+50 m+COM PEDESTAL | G63: 59
B64: CAIXA Exd + PAINEL IHM | C64: ModBus TCP/IP | D64: 100 m | E64: COM PEDESTAL | F64: =_xlfn.CONCAT(TAB_COMBINAÇÕES[[#This Row],[AUTOMAÇÃO]],"+",TAB_COMBINAÇÕES[[#This Row],[COMUNICAÇÃO]],"+",TAB_COMBINAÇÕES[[#This Row],[CABO]],"+",TAB_COMBINAÇÕES[[#This Row],[FIXAÇÃO]]) -> CAIXA Exd + PAINEL IHM+ModBus TCP/IP+100 m+COM PEDESTAL | G64: 60
B65: CAIXA Exd + PAINEL IHM | C65: ModBus TCP/IP | D65: 200 m | E65: COM PEDESTAL | F65: =_xlfn.CONCAT(TAB_COMBINAÇÕES[[#This Row],[AUTOMAÇÃO]],"+",TAB_COMBINAÇÕES[[#This Row],[COMUNICAÇÃO]],"+",TAB_COMBINAÇÕES[[#This Row],[CABO]],"+",TAB_COMBINAÇÕES[[#This Row],[FIXAÇÃO]]) -> CAIXA Exd + PAINEL IHM+ModBus TCP/IP+200 m+COM PEDESTAL | G65: 61
B66: CAIXA Exd + PAINEL IHM | C66: ModBus TCP/IP | D66: 300 m | E66: COM PEDESTAL | F66: =_xlfn.CONCAT(TAB_COMBINAÇÕES[[#This Row],[AUTOMAÇÃO]],"+",TAB_COMBINAÇÕES[[#This Row],[COMUNICAÇÃO]],"+",TAB_COMBINAÇÕES[[#This Row],[CABO]],"+",TAB_COMBINAÇÕES[[#This Row],[FIXAÇÃO]]) -> CAIXA Exd + PAINEL IHM+ModBus TCP/IP+300 m+COM PEDESTAL | G66: 62
B67: CAIXA Exd + PAINEL IHM | C67: ModBus TCP/IP + 4-20mA | D67: SEM CABO | E67: COM PEDESTAL | F67: =_xlfn.CONCAT(TAB_COMBINAÇÕES[[#This Row],[AUTOMAÇÃO]],"+",TAB_COMBINAÇÕES[[#This Row],[COMUNICAÇÃO]],"+",TAB_COMBINAÇÕES[[#This Row],[CABO]],"+",TAB_COMBINAÇÕES[[#This Row],[FIXAÇÃO]]) -> CAIXA Exd + PAINEL IHM+ModBus TCP/IP + 4-20mA+SEM CABO+COM PEDESTAL | G67: 63
B68: CAIXA Exd + PAINEL IHM | C68: ModBus TCP/IP + 4-20mA | D68: 10 m | E68: COM PEDESTAL | F68: =_xlfn.CONCAT(TAB_COMBINAÇÕES[[#This Row],[AUTOMAÇÃO]],"+",TAB_COMBINAÇÕES[[#This Row],[COMUNICAÇÃO]],"+",TAB_COMBINAÇÕES[[#This Row],[CABO]],"+",TAB_COMBINAÇÕES[[#This Row],[FIXAÇÃO]]) -> CAIXA Exd + PAINEL IHM+ModBus TCP/IP + 4-20mA+10 m+COM PEDESTAL | G68: 64
B69: CAIXA Exd + PAINEL IHM | C69: ModBus TCP/IP + 4-20mA | D69: 20 m | E69: COM PEDESTAL | F69: =_xlfn.CONCAT(TAB_COMBINAÇÕES[[#This Row],[AUTOMAÇÃO]],"+",TAB_COMBINAÇÕES[[#This Row],[COMUNICAÇÃO]],"+",TAB_COMBINAÇÕES[[#This Row],[CABO]],"+",TAB_COMBINAÇÕES[[#This Row],[FIXAÇÃO]]) -> CAIXA Exd + PAINEL IHM+ModBus TCP/IP + 4-20mA+20 m+COM PEDESTAL | G69: 65
B70: CAIXA Exd + PAINEL IHM | C70: ModBus TCP/IP + 4-20mA | D70: 50 m | E70: COM PEDESTAL | F70: =_xlfn.CONCAT(TAB_COMBINAÇÕES[[#This Row],[AUTOMAÇÃO]],"+",TAB_COMBINAÇÕES[[#This Row],[COMUNICAÇÃO]],"+",TAB_COMBINAÇÕES[[#This Row],[CABO]],"+",TAB_COMBINAÇÕES[[#This Row],[FIXAÇÃO]]) -> CAIXA Exd + PAINEL IHM+ModBus TCP/IP + 4-20mA+50 m+COM PEDESTAL | G70: 66
B71: CAIXA Exd + PAINEL IHM | C71: ModBus TCP/IP + 4-20mA | D71: 100 m | E71: COM PEDESTAL | F71: =_xlfn.CONCAT(TAB_COMBINAÇÕES[[#This Row],[AUTOMAÇÃO]],"+",TAB_COMBINAÇÕES[[#This Row],[COMUNICAÇÃO]],"+",TAB_COMBINAÇÕES[[#This Row],[CABO]],"+",TAB_COMBINAÇÕES[[#This Row],[FIXAÇÃO]]) -> CAIXA Exd + PAINEL IHM+ModBus TCP/IP + 4-20mA+100 m+COM PEDESTAL | G71: 67
B72: CAIXA Exd + PAINEL IHM | C72: ModBus TCP/IP + 4-20mA | D72: 200 m | E72: COM PEDESTAL | F72: =_xlfn.CONCAT(TAB_COMBINAÇÕES[[#This Row],[AUTOMAÇÃO]],"+",TAB_COMBINAÇÕES[[#This Row],[COMUNICAÇÃO]],"+",TAB_COMBINAÇÕES[[#This Row],[CABO]],"+",TAB_COMBINAÇÕES[[#This Row],[FIXAÇÃO]]) -> CAIXA Exd + PAINEL IHM+ModBus TCP/IP + 4-20mA+200 m+COM PEDESTAL | G72: 68
B73: CAIXA Exd + PAINEL IHM | C73: ModBus TCP/IP + 4-20mA | D73: 300 m | E73: COM PEDESTAL | F73: =_xlfn.CONCAT(TAB_COMBINAÇÕES[[#This Row],[AUTOMAÇÃO]],"+",TAB_COMBINAÇÕES[[#This Row],[COMUNICAÇÃO]],"+",TAB_COMBINAÇÕES[[#This Row],[CABO]],"+",TAB_COMBINAÇÕES[[#This Row],[FIXAÇÃO]]) -> CAIXA Exd + PAINEL IHM+ModBus TCP/IP + 4-20mA+300 m+COM PEDESTAL | G73: 69
B74: CAIXA Exd + PAINEL IHM | C74: Profibus | D74: SEM CABO | E74: COM PEDESTAL | F74: =_xlfn.CONCAT(TAB_COMBINAÇÕES[[#This Row],[AUTOMAÇÃO]],"+",TAB_COMBINAÇÕES[[#This Row],[COMUNICAÇÃO]],"+",TAB_COMBINAÇÕES[[#This Row],[CABO]],"+",TAB_COMBINAÇÕES[[#This Row],[FIXAÇÃO]]) -> CAIXA Exd + PAINEL IHM+Profibus+SEM CABO+COM PEDESTAL | G74: 70
B75: CAIXA Exd + PAINEL IHM | C75: Profibus | D75: 10 m | E75: COM PEDESTAL | F75: =_xlfn.CONCAT(TAB_COMBINAÇÕES[[#This Row],[AUTOMAÇÃO]],"+",TAB_COMBINAÇÕES[[#This Row],[COMUNICAÇÃO]],"+",TAB_COMBINAÇÕES[[#This Row],[CABO]],"+",TAB_COMBINAÇÕES[[#This Row],[FIXAÇÃO]]) -> CAIXA Exd + PAINEL IHM+Profibus+10 m+COM PEDESTAL | G75: 71
B76: CAIXA Exd + PAINEL IHM | C76: Profibus | D76: 20 m | E76: COM PEDESTAL | F76: =_xlfn.CONCAT(TAB_COMBINAÇÕES[[#This Row],[AUTOMAÇÃO]],"+",TAB_COMBINAÇÕES[[#This Row],[COMUNICAÇÃO]],"+",TAB_COMBINAÇÕES[[#This Row],[CABO]],"+",TAB_COMBINAÇÕES[[#This Row],[FIXAÇÃO]]) -> CAIXA Exd + PAINEL IHM+Profibus+20 m+COM PEDESTAL | G76: 72
B77: CAIXA Exd + PAINEL IHM | C77: Profibus | D77: 50 m | E77: COM PEDESTAL | F77: =_xlfn.CONCAT(TAB_COMBINAÇÕES[[#This Row],[AUTOMAÇÃO]],"+",TAB_COMBINAÇÕES[[#This Row],[COMUNICAÇÃO]],"+",TAB_COMBINAÇÕES[[#This Row],[CABO]],"+",TAB_COMBINAÇÕES[[#This Row],[FIXAÇÃO]]) -> CAIXA Exd + PAINEL IHM+Profibus+50 m+COM PEDESTAL | G77: 73
B78: CAIXA Exd + PAINEL IHM | C78: Profibus | D78: 100 m | E78: COM PEDESTAL | F78: =_xlfn.CONCAT(TAB_COMBINAÇÕES[[#This Row],[AUTOMAÇÃO]],"+",TAB_COMBINAÇÕES[[#This Row],[COMUNICAÇÃO]],"+",TAB_COMBINAÇÕES[[#This Row],[CABO]],"+",TAB_COMBINAÇÕES[[#This Row],[FIXAÇÃO]]) -> CAIXA Exd + PAINEL IHM+Profibus+100 m+COM PEDESTAL | G78: 74
B79: CAIXA Exd + PAINEL IHM | C79: Profibus | D79: 200 m | E79: COM PEDESTAL | F79: =_xlfn.CONCAT(TAB_COMBINAÇÕES[[#This Row],[AUTOMAÇÃO]],"+",TAB_COMBINAÇÕES[[#This Row],[COMUNICAÇÃO]],"+",TAB_COMBINAÇÕES[[#This Row],[CABO]],"+",TAB_COMBINAÇÕES[[#This Row],[FIXAÇÃO]]) -> CAIXA Exd + PAINEL IHM+Profibus+200 m+COM PEDESTAL | G79: 75
B80: CAIXA Exd + PAINEL IHM | C80: Profibus | D80: 300 m | E80: COM PEDESTAL | F80: =_xlfn.CONCAT(TAB_COMBINAÇÕES[[#This Row],[AUTOMAÇÃO]],"+",TAB_COMBINAÇÕES[[#This Row],[COMUNICAÇÃO]],"+",TAB_COMBINAÇÕES[[#This Row],[CABO]],"+",TAB_COMBINAÇÕES[[#This Row],[FIXAÇÃO]]) -> CAIXA Exd + PAINEL IHM+Profibus+300 m+COM PEDESTAL | G80: 76
B81: CAIXA Exd + PAINEL IHM | C81: Profibus + 4-20mA | D81: SEM CABO | E81: COM PEDESTAL | F81: =_xlfn.CONCAT(TAB_COMBINAÇÕES[[#This Row],[AUTOMAÇÃO]],"+",TAB_COMBINAÇÕES[[#This Row],[COMUNICAÇÃO]],"+",TAB_COMBINAÇÕES[[#This Row],[CABO]],"+",TAB_COMBINAÇÕES[[#This Row],[FIXAÇÃO]]) -> CAIXA Exd + PAINEL IHM+Profibus + 4-20mA+SEM CABO+COM PEDESTAL | G81: 77
B82: CAIXA Exd + PAINEL IHM | C82: Profibus + 4-20mA | D82: 10 m | E82: COM PEDESTAL | F82: =_xlfn.CONCAT(TAB_COMBINAÇÕES[[#This Row],[AUTOMAÇÃO]],"+",TAB_COMBINAÇÕES[[#This Row],[COMUNICAÇÃO]],"+",TAB_COMBINAÇÕES[[#This Row],[CABO]],"+",TAB_COMBINAÇÕES[[#This Row],[FIXAÇÃO]]) -> CAIXA Exd + PAINEL IHM+Profibus + 4-20mA+10 m+COM PEDESTAL | G82: 78
B83: CAIXA Exd + PAINEL IHM | C83: Profibus + 4-20mA | D83: 20 m | E83: COM PEDESTAL | F83: =_xlfn.CONCAT(TAB_COMBINAÇÕES[[#This Row],[AUTOMAÇÃO]],"+",TAB_COMBINAÇÕES[[#This Row],[COMUNICAÇÃO]],"+",TAB_COMBINAÇÕES[[#This Row],[CABO]],"+",TAB_COMBINAÇÕES[[#This Row],[FIXAÇÃO]]) -> CAIXA Exd + PAINEL IHM+Profibus + 4-20mA+20 m+COM PEDESTAL | G83: 79
B84: CAIXA Exd + PAINEL IHM | C84: Profibus + 4-20mA | D84: 50 m | E84: COM PEDESTAL | F84: =_xlfn.CONCAT(TAB_COMBINAÇÕES[[#This Row],[AUTOMAÇÃO]],"+",TAB_COMBINAÇÕES[[#This Row],[COMUNICAÇÃO]],"+",TAB_COMBINAÇÕES[[#This Row],[CABO]],"+",TAB_COMBINAÇÕES[[#This Row],[FIXAÇÃO]]) -> CAIXA Exd + PAINEL IHM+Profibus + 4-20mA+50 m+COM PEDESTAL | G84: 80
B85: CAIXA Exd + PAINEL IHM | C85: Profibus + 4-20mA | D85: 100 m | E85: COM PEDESTAL | F85: =_xlfn.CONCAT(TAB_COMBINAÇÕES[[#This Row],[AUTOMAÇÃO]],"+",TAB_COMBINAÇÕES[[#This Row],[COMUNICAÇÃO]],"+",TAB_COMBINAÇÕES[[#This Row],[CABO]],"+",TAB_COMBINAÇÕES[[#This Row],[FIXAÇÃO]]) -> CAIXA Exd + PAINEL IHM+Profibus + 4-20mA+100 m+COM PEDESTAL | G85: 81
B86: CAIXA Exd + PAINEL IHM | C86: Profibus + 4-20mA | D86: 200 m | E86: COM PEDESTAL | F86: =_xlfn.CONCAT(TAB_COMBINAÇÕES[[#This Row],[AUTOMAÇÃO]],"+",TAB_COMBINAÇÕES[[#This Row],[COMUNICAÇÃO]],"+",TAB_COMBINAÇÕES[[#This Row],[CABO]],"+",TAB_COMBINAÇÕES[[#This Row],[FIXAÇÃO]]) -> CAIXA Exd + PAINEL IHM+Profibus + 4-20mA+200 m+COM PEDESTAL | G86: 82
B87: CAIXA Exd + PAINEL IHM | C87: Profibus + 4-20mA | D87: 300 m | E87: COM PEDESTAL | F87: =_xlfn.CONCAT(TAB_COMBINAÇÕES[[#This Row],[AUTOMAÇÃO]],"+",TAB_COMBINAÇÕES[[#This Row],[COMUNICAÇÃO]],"+",TAB_COMBINAÇÕES[[#This Row],[CABO]],"+",TAB_COMBINAÇÕES[[#This Row],[FIXAÇÃO]]) -> CAIXA Exd + PAINEL IHM+Profibus + 4-20mA+300 m+COM PEDESTAL | G87: 83
B88: CAIXA Exd + PAINEL IHM | C88: Profinet | D88: SEM CABO | E88: COM PEDESTAL | F88: =_xlfn.CONCAT(TAB_COMBINAÇÕES[[#This Row],[AUTOMAÇÃO]],"+",TAB_COMBINAÇÕES[[#This Row],[COMUNICAÇÃO]],"+",TAB_COMBINAÇÕES[[#This Row],[CABO]],"+",TAB_COMBINAÇÕES[[#This Row],[FIXAÇÃO]]) -> CAIXA Exd + PAINEL IHM+Profinet+SEM CABO+COM PEDESTAL | G88: 84
B89: CAIXA Exd + PAINEL IHM | C89: Profinet | D89: 10 m | E89: COM PEDESTAL | F89: =_xlfn.CONCAT(TAB_COMBINAÇÕES[[#This Row],[AUTOMAÇÃO]],"+",TAB_COMBINAÇÕES[[#This Row],[COMUNICAÇÃO]],"+",TAB_COMBINAÇÕES[[#This Row],[CABO]],"+",TAB_COMBINAÇÕES[[#This Row],[FIXAÇÃO]]) -> CAIXA Exd + PAINEL IHM+Profinet+10 m+COM PEDESTAL | G89: 85
B90: CAIXA Exd + PAINEL IHM | C90: Profinet | D90: 20 m | E90: COM PEDESTAL | F90: =_xlfn.CONCAT(TAB_COMBINAÇÕES[[#This Row],[AUTOMAÇÃO]],"+",TAB_COMBINAÇÕES[[#This Row],[COMUNICAÇÃO]],"+",TAB_COMBINAÇÕES[[#This Row],[CABO]],"+",TAB_COMBINAÇÕES[[#This Row],[FIXAÇÃO]]) -> CAIXA Exd + PAINEL IHM+Profinet+20 m+COM PEDESTAL | G90: 86
B91: CAIXA Exd + PAINEL IHM | C91: Profinet | D91: 50 m | E91: COM PEDESTAL | F91: =_xlfn.CONCAT(TAB_COMBINAÇÕES[[#This Row],[AUTOMAÇÃO]],"+",TAB_COMBINAÇÕES[[#This Row],[COMUNICAÇÃO]],"+",TAB_COMBINAÇÕES[[#This Row],[CABO]],"+",TAB_COMBINAÇÕES[[#This Row],[FIXAÇÃO]]) -> CAIXA Exd + PAINEL IHM+Profinet+50 m+COM PEDESTAL | G91: 87
B92: CAIXA Exd + PAINEL IHM | C92: Profinet | D92: 100 m | E92: COM PEDESTAL | F92: =_xlfn.CONCAT(TAB_COMBINAÇÕES[[#This Row],[AUTOMAÇÃO]],"+",TAB_COMBINAÇÕES[[#This Row],[COMUNICAÇÃO]],"+",TAB_COMBINAÇÕES[[#This Row],[CABO]],"+",TAB_COMBINAÇÕES[[#This Row],[FIXAÇÃO]]) -> CAIXA Exd + PAINEL IHM+Profinet+100 m+COM PEDESTAL | G92: 88
B93: CAIXA Exd + PAINEL IHM | C93: Profinet | D93: 200 m | E93: COM PEDESTAL | F93: =_xlfn.CONCAT(TAB_COMBINAÇÕES[[#This Row],[AUTOMAÇÃO]],"+",TAB_COMBINAÇÕES[[#This Row],[COMUNICAÇÃO]],"+",TAB_COMBINAÇÕES[[#This Row],[CABO]],"+",TAB_COMBINAÇÕES[[#This Row],[FIXAÇÃO]]) -> CAIXA Exd + PAINEL IHM+Profinet+200 m+COM PEDESTAL | G93: 89
B94: CAIXA Exd + PAINEL IHM | C94: Profinet | D94: 300 m | E94: COM PEDESTAL | F94: =_xlfn.CONCAT(TAB_COMBINAÇÕES[[#This Row],[AUTOMAÇÃO]],"+",TAB_COMBINAÇÕES[[#This Row],[COMUNICAÇÃO]],"+",TAB_COMBINAÇÕES[[#This Row],[CABO]],"+",TAB_COMBINAÇÕES[[#This Row],[FIXAÇÃO]]) -> CAIXA Exd + PAINEL IHM+Profinet+300 m+COM PEDESTAL | G94: 90
B95: CAIXA Exd + PAINEL IHM | C95: Profinet + 4-20mA | D95: SEM CABO | E95: COM PEDESTAL | F95: =_xlfn.CONCAT(TAB_COMBINAÇÕES[[#This Row],[AUTOMAÇÃO]],"+",TAB_COMBINAÇÕES[[#This Row],[COMUNICAÇÃO]],"+",TAB_COMBINAÇÕES[[#This Row],[CABO]],"+",TAB_COMBINAÇÕES[[#This Row],[FIXAÇÃO]]) -> CAIXA Exd + PAINEL IHM+Profinet + 4-20mA+SEM CABO+COM PEDESTAL | G95: 91
B96: CAIXA Exd + PAINEL IHM | C96: Profinet + 4-20mA | D96: 10 m | E96: COM PEDESTAL | F96: =_xlfn.CONCAT(TAB_COMBINAÇÕES[[#This Row],[AUTOMAÇÃO]],"+",TAB_COMBINAÇÕES[[#This Row],[COMUNICAÇÃO]],"+",TAB_COMBINAÇÕES[[#This Row],[CABO]],"+",TAB_COMBINAÇÕES[[#This Row],[FIXAÇÃO]]) -> CAIXA Exd + PAINEL IHM+Profinet + 4-20mA+10 m+COM PEDESTAL | G96: 92
B97: CAIXA Exd + PAINEL IHM | C97: Profinet + 4-20mA | D97: 20 m | E97: COM PEDESTAL | F97: =_xlfn.CONCAT(TAB_COMBINAÇÕES[[#This Row],[AUTOMAÇÃO]],"+",TAB_COMBINAÇÕES[[#This Row],[COMUNICAÇÃO]],"+",TAB_COMBINAÇÕES[[#This Row],[CABO]],"+",TAB_COMBINAÇÕES[[#This Row],[FIXAÇÃO]]) -> CAIXA Exd + PAINEL IHM+Profinet + 4-20mA+20 m+COM PEDESTAL | G97: 93
B98: CAIXA Exd + PAINEL IHM | C98: Profinet + 4-20mA | D98: 50 m | E98: COM PEDESTAL | F98: =_xlfn.CONCAT(TAB_COMBINAÇÕES[[#This Row],[AUTOMAÇÃO]],"+",TAB_COMBINAÇÕES[[#This Row],[COMUNICAÇÃO]],"+",TAB_COMBINAÇÕES[[#This Row],[CABO]],"+",TAB_COMBINAÇÕES[[#This Row],[FIXAÇÃO]]) -> CAIXA Exd + PAINEL IHM+Profinet + 4-20mA+50 m+COM PEDESTAL | G98: 94
B99: CAIXA Exd + PAINEL IHM | C99: Profinet + 4-20mA | D99: 100 m | E99: COM PEDESTAL | F99: =_xlfn.CONCAT(TAB_COMBINAÇÕES[[#This Row],[AUTOMAÇÃO]],"+",TAB_COMBINAÇÕES[[#This Row],[COMUNICAÇÃO]],"+",TAB_COMBINAÇÕES[[#This Row],[CABO]],"+",TAB_COMBINAÇÕES[[#This Row],[FIXAÇÃO]]) -> CAIXA Exd + PAINEL IHM+Profinet + 4-20mA+100 m+COM PEDESTAL | G99: 95
B100: CAIXA Exd + PAINEL IHM | C100: Profinet + 4-20mA | D100: 200 m | E100: COM PEDESTAL | F100: =_xlfn.CONCAT(TAB_COMBINAÇÕES[[#This Row],[AUTOMAÇÃO]],"+",TAB_COMBINAÇÕES[[#This Row],[COMUNICAÇÃO]],"+",TAB_COMBINAÇÕES[[#This Row],[CABO]],"+",TAB_COMBINAÇÕES[[#This Row],[FIXAÇÃO]]) -> CAIXA Exd + PAINEL IHM+Profinet + 4-20mA+200 m+COM PEDESTAL | G100: 96
B101: CAIXA Exd + PAINEL IHM | C101: Profinet + 4-20mA | D101: 300 m | E101: COM PEDESTAL | F101: =_xlfn.CONCAT(TAB_COMBINAÇÕES[[#This Row],[AUTOMAÇÃO]],"+",TAB_COMBINAÇÕES[[#This Row],[COMUNICAÇÃO]],"+",TAB_COMBINAÇÕES[[#This Row],[CABO]],"+",TAB_COMBINAÇÕES[[#This Row],[FIXAÇÃO]]) -> CAIXA Exd + PAINEL IHM+Profinet + 4-20mA+300 m+COM PEDESTAL | G101: 97
B102: CAIXA Exd + PAINEL IHM | C102: Sem comunicação | D102: SEM CABO | E102: COM PEDESTAL | F102: =_xlfn.CONCAT(TAB_COMBINAÇÕES[[#This Row],[AUTOMAÇÃO]],"+",TAB_COMBINAÇÕES[[#This Row],[COMUNICAÇÃO]],"+",TAB_COMBINAÇÕES[[#This Row],[CABO]],"+",TAB_COMBINAÇÕES[[#This Row],[FIXAÇÃO]]) -> CAIXA Exd + PAINEL IHM+Sem comunicação+SEM CABO+COM PEDESTAL | G102: 98
B103: CAIXA Exd + PAINEL IHM | C103: Sem comunicação | D103: 10 m | E103: COM PEDESTAL | F103: =_xlfn.CONCAT(TAB_COMBINAÇÕES[[#This Row],[AUTOMAÇÃO]],"+",TAB_COMBINAÇÕES[[#This Row],[COMUNICAÇÃO]],"+",TAB_COMBINAÇÕES[[#This Row],[CABO]],"+",TAB_COMBINAÇÕES[[#This Row],[FIXAÇÃO]]) -> CAIXA Exd + PAINEL IHM+Sem comunicação+10 m+COM PEDESTAL | G103: 99
B104: CAIXA Exd + PAINEL IHM | C104: Sem comunicação | D104: 20 m | E104: COM PEDESTAL | F104: =_xlfn.CONCAT(TAB_COMBINAÇÕES[[#This Row],[AUTOMAÇÃO]],"+",TAB_COMBINAÇÕES[[#This Row],[COMUNICAÇÃO]],"+",TAB_COMBINAÇÕES[[#This Row],[CABO]],"+",TAB_COMBINAÇÕES[[#This Row],[FIXAÇÃO]]) -> CAIXA Exd + PAINEL IHM+Sem comunicação+20 m+COM PEDESTAL | G104: A1
B105: CAIXA Exd + PAINEL IHM | C105: Sem comunicação | D105: 50 m | E105: COM PEDESTAL | F105: =_xlfn.CONCAT(TAB_COMBINAÇÕES[[#This Row],[AUTOMAÇÃO]],"+",TAB_COMBINAÇÕES[[#This Row],[COMUNICAÇÃO]],"+",TAB_COMBINAÇÕES[[#This Row],[CABO]],"+",TAB_COMBINAÇÕES[[#This Row],[FIXAÇÃO]]) -> CAIXA Exd + PAINEL IHM+Sem comunicação+50 m+COM PEDESTAL | G105: A2
B106: CAIXA Exd + PAINEL IHM | C106: Sem comunicação | D106: 100 m | E106: COM PEDESTAL | F106: =_xlfn.CONCAT(TAB_COMBINAÇÕES[[#This Row],[AUTOMAÇÃO]],"+",TAB_COMBINAÇÕES[[#This Row],[COMUNICAÇÃO]],"+",TAB_COMBINAÇÕES[[#This Row],[CABO]],"+",TAB_COMBINAÇÕES[[#This Row],[FIXAÇÃO]]) -> CAIXA Exd + PAINEL IHM+Sem comunicação+100 m+COM PEDESTAL | G106: A3
B107: CAIXA Exd + PAINEL IHM | C107: Sem comunicação | D107: 200 m | E107: COM PEDESTAL | F107: =_xlfn.CONCAT(TAB_COMBINAÇÕES[[#This Row],[AUTOMAÇÃO]],"+",TAB_COMBINAÇÕES[[#This Row],[COMUNICAÇÃO]],"+",TAB_COMBINAÇÕES[[#This Row],[CABO]],"+",TAB_COMBINAÇÕES[[#This Row],[FIXAÇÃO]]) -> CAIXA Exd + PAINEL IHM+Sem comunicação+200 m+COM PEDESTAL | G107: A4
B108: CAIXA Exd + PAINEL IHM | C108: Sem comunicação | D108: 300 m | E108: COM PEDESTAL | F108: =_xlfn.CONCAT(TAB_COMBINAÇÕES[[#This Row],[AUTOMAÇÃO]],"+",TAB_COMBINAÇÕES[[#This Row],[COMUNICAÇÃO]],"+",TAB_COMBINAÇÕES[[#This Row],[CABO]],"+",TAB_COMBINAÇÕES[[#This Row],[FIXAÇÃO]]) -> CAIXA Exd + PAINEL IHM+Sem comunicação+300 m+COM PEDESTAL | G108: A5
B109: CAIXA Exd + PAINEL IHM | C109: Somente 4-20mA | D109: SEM CABO | E109: COM PEDESTAL | F109: =_xlfn.CONCAT(TAB_COMBINAÇÕES[[#This Row],[AUTOMAÇÃO]],"+",TAB_COMBINAÇÕES[[#This Row],[COMUNICAÇÃO]],"+",TAB_COMBINAÇÕES[[#This Row],[CABO]],"+",TAB_COMBINAÇÕES[[#This Row],[FIXAÇÃO]]) -> CAIXA Exd + PAINEL IHM+Somente 4-20mA+SEM CABO+COM PEDESTAL | G109: A6
B110: CAIXA Exd + PAINEL IHM | C110: Somente 4-20mA | D110: 10 m | E110: COM PEDESTAL | F110: =_xlfn.CONCAT(TAB_COMBINAÇÕES[[#This Row],[AUTOMAÇÃO]],"+",TAB_COMBINAÇÕES[[#This Row],[COMUNICAÇÃO]],"+",TAB_COMBINAÇÕES[[#This Row],[CABO]],"+",TAB_COMBINAÇÕES[[#This Row],[FIXAÇÃO]]) -> CAIXA Exd + PAINEL IHM+Somente 4-20mA+10 m+COM PEDESTAL | G110: A7
B111: CAIXA Exd + PAINEL IHM | C111: Somente 4-20mA | D111: 20 m | E111: COM PEDESTAL | F111: =_xlfn.CONCAT(TAB_COMBINAÇÕES[[#This Row],[AUTOMAÇÃO]],"+",TAB_COMBINAÇÕES[[#This Row],[COMUNICAÇÃO]],"+",TAB_COMBINAÇÕES[[#This Row],[CABO]],"+",TAB_COMBINAÇÕES[[#This Row],[FIXAÇÃO]]) -> CAIXA Exd + PAINEL IHM+Somente 4-20mA+20 m+COM PEDESTAL | G111: A8
B112: CAIXA Exd + PAINEL IHM | C112: Somente 4-20mA | D112: 50 m | E112: COM PEDESTAL | F112: =_xlfn.CONCAT(TAB_COMBINAÇÕES[[#This Row],[AUTOMAÇÃO]],"+",TAB_COMBINAÇÕES[[#This Row],[COMUNICAÇÃO]],"+",TAB_COMBINAÇÕES[[#This Row],[CABO]],"+",TAB_COMBINAÇÕES[[#This Row],[FIXAÇÃO]]) -> CAIXA Exd + PAINEL IHM+Somente 4-20mA+50 m+COM PEDESTAL | G112: A9
B113: CAIXA Exd + PAINEL IHM | C113: Somente 4-20mA | D113: 100 m | E113: COM PEDESTAL | F113: =_xlfn.CONCAT(TAB_COMBINAÇÕES[[#This Row],[AUTOMAÇÃO]],"+",TAB_COMBINAÇÕES[[#This Row],[COMUNICAÇÃO]],"+",TAB_COMBINAÇÕES[[#This Row],[CABO]],"+",TAB_COMBINAÇÕES[[#This Row],[FIXAÇÃO]]) -> CAIXA Exd + PAINEL IHM+Somente 4-20mA+100 m+COM PEDESTAL | G113: B1
B114: CAIXA Exd + PAINEL IHM | C114: Somente 4-20mA | D114: 200 m | E114: COM PEDESTAL | F114: =_xlfn.CONCAT(TAB_COMBINAÇÕES[[#This Row],[AUTOMAÇÃO]],"+",TAB_COMBINAÇÕES[[#This Row],[COMUNICAÇÃO]],"+",TAB_COMBINAÇÕES[[#This Row],[CABO]],"+",TAB_COMBINAÇÕES[[#This Row],[FIXAÇÃO]]) -> CAIXA Exd + PAINEL IHM+Somente 4-20mA+200 m+COM PEDESTAL | G114: B2
B115: CAIXA Exd + PAINEL IHM | C115: Somente 4-20mA | D115: 300 m | E115: COM PEDESTAL | F115: =_xlfn.CONCAT(TAB_COMBINAÇÕES[[#This Row],[AUTOMAÇÃO]],"+",TAB_COMBINAÇÕES[[#This Row],[COMUNICAÇÃO]],"+",TAB_COMBINAÇÕES[[#This Row],[CABO]],"+",TAB_COMBINAÇÕES[[#This Row],[FIXAÇÃO]]) -> CAIXA Exd + PAINEL IHM+Somente 4-20mA+300 m+COM PEDESTAL | G115: B3
B116: CAIXA Exd + PAINEL IHM | C116: DeviceNet | D116: SEM CABO | E116: SEM PEDESTAL | F116: =_xlfn.CONCAT(TAB_COMBINAÇÕES[[#This Row],[AUTOMAÇÃO]],"+",TAB_COMBINAÇÕES[[#This Row],[COMUNICAÇÃO]],"+",TAB_COMBINAÇÕES[[#This Row],[CABO]],"+",TAB_COMBINAÇÕES[[#This Row],[FIXAÇÃO]]) -> CAIXA Exd + PAINEL IHM+DeviceNet+SEM CABO+SEM PEDESTAL | G116: B4
B117: CAIXA Exd + PAINEL IHM | C117: DeviceNet | D117: 10 m | E117: SEM PEDESTAL | F117: =_xlfn.CONCAT(TAB_COMBINAÇÕES[[#This Row],[AUTOMAÇÃO]],"+",TAB_COMBINAÇÕES[[#This Row],[COMUNICAÇÃO]],"+",TAB_COMBINAÇÕES[[#This Row],[CABO]],"+",TAB_COMBINAÇÕES[[#This Row],[FIXAÇÃO]]) -> CAIXA Exd + PAINEL IHM+DeviceNet+10 m+SEM PEDESTAL | G117: B5
B118: CAIXA Exd + PAINEL IHM | C118: DeviceNet | D118: 20 m | E118: SEM PEDESTAL | F118: =_xlfn.CONCAT(TAB_COMBINAÇÕES[[#This Row],[AUTOMAÇÃO]],"+",TAB_COMBINAÇÕES[[#This Row],[COMUNICAÇÃO]],"+",TAB_COMBINAÇÕES[[#This Row],[CABO]],"+",TAB_COMBINAÇÕES[[#This Row],[FIXAÇÃO]]) -> CAIXA Exd + PAINEL IHM+DeviceNet+20 m+SEM PEDESTAL | G118: B6
B119: CAIXA Exd + PAINEL IHM | C119: DeviceNet | D119: 50 m | E119: SEM PEDESTAL | F119: =_xlfn.CONCAT(TAB_COMBINAÇÕES[[#This Row],[AUTOMAÇÃO]],"+",TAB_COMBINAÇÕES[[#This Row],[COMUNICAÇÃO]],"+",TAB_COMBINAÇÕES[[#This Row],[CABO]],"+",TAB_COMBINAÇÕES[[#This Row],[FIXAÇÃO]]) -> CAIXA Exd + PAINEL IHM+DeviceNet+50 m+SEM PEDESTAL | G119: B7
B120: CAIXA Exd + PAINEL IHM | C120: DeviceNet | D120: 100 m | E120: SEM PEDESTAL | F120: =_xlfn.CONCAT(TAB_COMBINAÇÕES[[#This Row],[AUTOMAÇÃO]],"+",TAB_COMBINAÇÕES[[#This Row],[COMUNICAÇÃO]],"+",TAB_COMBINAÇÕES[[#This Row],[CABO]],"+",TAB_COMBINAÇÕES[[#This Row],[FIXAÇÃO]]) -> CAIXA Exd + PAINEL IHM+DeviceNet+100 m+SEM PEDESTAL | G120: B8
B121: CAIXA Exd + PAINEL IHM | C121: DeviceNet | D121: 200 m | E121: SEM PEDESTAL | F121: =_xlfn.CONCAT(TAB_COMBINAÇÕES[[#This Row],[AUTOMAÇÃO]],"+",TAB_COMBINAÇÕES[[#This Row],[COMUNICAÇÃO]],"+",TAB_COMBINAÇÕES[[#This Row],[CABO]],"+",TAB_COMBINAÇÕES[[#This Row],[FIXAÇÃO]]) -> CAIXA Exd + PAINEL IHM+DeviceNet+200 m+SEM PEDESTAL | G121: B9
B122: CAIXA Exd + PAINEL IHM | C122: DeviceNet | D122: 300 m | E122: SEM PEDESTAL | F122: =_xlfn.CONCAT(TAB_COMBINAÇÕES[[#This Row],[AUTOMAÇÃO]],"+",TAB_COMBINAÇÕES[[#This Row],[COMUNICAÇÃO]],"+",TAB_COMBINAÇÕES[[#This Row],[CABO]],"+",TAB_COMBINAÇÕES[[#This Row],[FIXAÇÃO]]) -> CAIXA Exd + PAINEL IHM+DeviceNet+300 m+SEM PEDESTAL | G122: C1
B123: CAIXA Exd + PAINEL IHM | C123: DeviceNet + 4-20mA | D123: SEM CABO | E123: SEM PEDESTAL | F123: =_xlfn.CONCAT(TAB_COMBINAÇÕES[[#This Row],[AUTOMAÇÃO]],"+",TAB_COMBINAÇÕES[[#This Row],[COMUNICAÇÃO]],"+",TAB_COMBINAÇÕES[[#This Row],[CABO]],"+",TAB_COMBINAÇÕES[[#This Row],[FIXAÇÃO]]) -> CAIXA Exd + PAINEL IHM+DeviceNet + 4-20mA+SEM CABO+SEM PEDESTAL | G123: C2
B124: CAIXA Exd + PAINEL IHM | C124: DeviceNet + 4-20mA | D124: 10 m | E124: SEM PEDESTAL | F124: =_xlfn.CONCAT(TAB_COMBINAÇÕES[[#This Row],[AUTOMAÇÃO]],"+",TAB_COMBINAÇÕES[[#This Row],[COMUNICAÇÃO]],"+",TAB_COMBINAÇÕES[[#This Row],[CABO]],"+",TAB_COMBINAÇÕES[[#This Row],[FIXAÇÃO]]) -> CAIXA Exd + PAINEL IHM+DeviceNet + 4-20mA+10 m+SEM PEDESTAL | G124: C3
B125: CAIXA Exd + PAINEL IHM | C125: DeviceNet + 4-20mA | D125: 20 m | E125: SEM PEDESTAL | F125: =_xlfn.CONCAT(TAB_COMBINAÇÕES[[#This Row],[AUTOMAÇÃO]],"+",TAB_COMBINAÇÕES[[#This Row],[COMUNICAÇÃO]],"+",TAB_COMBINAÇÕES[[#This Row],[CABO]],"+",TAB_COMBINAÇÕES[[#This Row],[FIXAÇÃO]]) -> CAIXA Exd + PAINEL IHM+DeviceNet + 4-20mA+20 m+SEM PEDESTAL | G125: C4
B126: CAIXA Exd + PAINEL IHM | C126: DeviceNet + 4-20mA | D126: 50 m | E126: SEM PEDESTAL | F126: =_xlfn.CONCAT(TAB_COMBINAÇÕES[[#This Row],[AUTOMAÇÃO]],"+",TAB_COMBINAÇÕES[[#This Row],[COMUNICAÇÃO]],"+",TAB_COMBINAÇÕES[[#This Row],[CABO]],"+",TAB_COMBINAÇÕES[[#This Row],[FIXAÇÃO]]) -> CAIXA Exd + PAINEL IHM+DeviceNet + 4-20mA+50 m+SEM PEDESTAL | G126: C5
B127: CAIXA Exd + PAINEL IHM | C127: DeviceNet + 4-20mA | D127: 100 m | E127: SEM PEDESTAL | F127: =_xlfn.CONCAT(TAB_COMBINAÇÕES[[#This Row],[AUTOMAÇÃO]],"+",TAB_COMBINAÇÕES[[#This Row],[COMUNICAÇÃO]],"+",TAB_COMBINAÇÕES[[#This Row],[CABO]],"+",TAB_COMBINAÇÕES[[#This Row],[FIXAÇÃO]]) -> CAIXA Exd + PAINEL IHM+DeviceNet + 4-20mA+100 m+SEM PEDESTAL | G127: C6
B128: CAIXA Exd + PAINEL IHM | C128: DeviceNet + 4-20mA | D128: 200 m | E128: SEM PEDESTAL | F128: =_xlfn.CONCAT(TAB_COMBINAÇÕES[[#This Row],[AUTOMAÇÃO]],"+",TAB_COMBINAÇÕES[[#This Row],[COMUNICAÇÃO]],"+",TAB_COMBINAÇÕES[[#This Row],[CABO]],"+",TAB_COMBINAÇÕES[[#This Row],[FIXAÇÃO]]) -> CAIXA Exd + PAINEL IHM+DeviceNet + 4-20mA+200 m+SEM PEDESTAL | G128: C7
B129: CAIXA Exd + PAINEL IHM | C129: DeviceNet + 4-20mA | D129: 300 m | E129: SEM PEDESTAL | F129: =_xlfn.CONCAT(TAB_COMBINAÇÕES[[#This Row],[AUTOMAÇÃO]],"+",TAB_COMBINAÇÕES[[#This Row],[COMUNICAÇÃO]],"+",TAB_COMBINAÇÕES[[#This Row],[CABO]],"+",TAB_COMBINAÇÕES[[#This Row],[FIXAÇÃO]]) -> CAIXA Exd + PAINEL IHM+DeviceNet + 4-20mA+300 m+SEM PEDESTAL | G129: C8
B130: CAIXA Exd + PAINEL IHM | C130: Ethernet TCP/IP | D130: SEM CABO | E130: SEM PEDESTAL | F130: =_xlfn.CONCAT(TAB_COMBINAÇÕES[[#This Row],[AUTOMAÇÃO]],"+",TAB_COMBINAÇÕES[[#This Row],[COMUNICAÇÃO]],"+",TAB_COMBINAÇÕES[[#This Row],[CABO]],"+",TAB_COMBINAÇÕES[[#This Row],[FIXAÇÃO]]) -> CAIXA Exd + PAINEL IHM+Ethernet TCP/IP+SEM CABO+SEM PEDESTAL | G130: C9
B131: CAIXA Exd + PAINEL IHM | C131: Ethernet TCP/IP | D131: 10 m | E131: SEM PEDESTAL | F131: =_xlfn.CONCAT(TAB_COMBINAÇÕES[[#This Row],[AUTOMAÇÃO]],"+",TAB_COMBINAÇÕES[[#This Row],[COMUNICAÇÃO]],"+",TAB_COMBINAÇÕES[[#This Row],[CABO]],"+",TAB_COMBINAÇÕES[[#This Row],[FIXAÇÃO]]) -> CAIXA Exd + PAINEL IHM+Ethernet TCP/IP+10 m+SEM PEDESTAL | G131: D1
B132: CAIXA Exd + PAINEL IHM | C132: Ethernet TCP/IP | D132: 20 m | E132: SEM PEDESTAL | F132: =_xlfn.CONCAT(TAB_COMBINAÇÕES[[#This Row],[AUTOMAÇÃO]],"+",TAB_COMBINAÇÕES[[#This Row],[COMUNICAÇÃO]],"+",TAB_COMBINAÇÕES[[#This Row],[CABO]],"+",TAB_COMBINAÇÕES[[#This Row],[FIXAÇÃO]]) -> CAIXA Exd + PAINEL IHM+Ethernet TCP/IP+20 m+SEM PEDESTAL | G132: D2
B133: CAIXA Exd + PAINEL IHM | C133: Ethernet TCP/IP | D133: 50 m | E133: SEM PEDESTAL | F133: =_xlfn.CONCAT(TAB_COMBINAÇÕES[[#This Row],[AUTOMAÇÃO]],"+",TAB_COMBINAÇÕES[[#This Row],[COMUNICAÇÃO]],"+",TAB_COMBINAÇÕES[[#This Row],[CABO]],"+",TAB_COMBINAÇÕES[[#This Row],[FIXAÇÃO]]) -> CAIXA Exd + PAINEL IHM+Ethernet TCP/IP+50 m+SEM PEDESTAL | G133: D3
B134: CAIXA Exd + PAINEL IHM | C134: Ethernet TCP/IP | D134: 100 m | E134: SEM PEDESTAL | F134: =_xlfn.CONCAT(TAB_COMBINAÇÕES[[#This Row],[AUTOMAÇÃO]],"+",TAB_COMBINAÇÕES[[#This Row],[COMUNICAÇÃO]],"+",TAB_COMBINAÇÕES[[#This Row],[CABO]],"+",TAB_COMBINAÇÕES[[#This Row],[FIXAÇÃO]]) -> CAIXA Exd + PAINEL IHM+Ethernet TCP/IP+100 m+SEM PEDESTAL | G134: D4
B135: CAIXA Exd + PAINEL IHM | C135: Ethernet TCP/IP | D135: 200 m | E135: SEM PEDESTAL | F135: =_xlfn.CONCAT(TAB_COMBINAÇÕES[[#This Row],[AUTOMAÇÃO]],"+",TAB_COMBINAÇÕES[[#This Row],[COMUNICAÇÃO]],"+",TAB_COMBINAÇÕES[[#This Row],[CABO]],"+",TAB_COMBINAÇÕES[[#This Row],[FIXAÇÃO]]) -> CAIXA Exd + PAINEL IHM+Ethernet TCP/IP+200 m+SEM PEDESTAL | G135: D5
B136: CAIXA Exd + PAINEL IHM | C136: Ethernet TCP/IP | D136: 300 m | E136: SEM PEDESTAL | F136: =_xlfn.CONCAT(TAB_COMBINAÇÕES[[#This Row],[AUTOMAÇÃO]],"+",TAB_COMBINAÇÕES[[#This Row],[COMUNICAÇÃO]],"+",TAB_COMBINAÇÕES[[#This Row],[CABO]],"+",TAB_COMBINAÇÕES[[#This Row],[FIXAÇÃO]]) -> CAIXA Exd + PAINEL IHM+Ethernet TCP/IP+300 m+SEM PEDESTAL | G136: D6
B137: CAIXA Exd + PAINEL IHM | C137: Ethernet TCP/IP + 4-20mA | D137: SEM CABO | E137: SEM PEDESTAL | F137: =_xlfn.CONCAT(TAB_COMBINAÇÕES[[#This Row],[AUTOMAÇÃO]],"+",TAB_COMBINAÇÕES[[#This Row],[COMUNICAÇÃO]],"+",TAB_COMBINAÇÕES[[#This Row],[CABO]],"+",TAB_COMBINAÇÕES[[#This Row],[FIXAÇÃO]]) -> CAIXA Exd + PAINEL IHM+Ethernet TCP/IP + 4-20mA+SEM CABO+SEM PEDESTAL | G137: D7
B138: CAIXA Exd + PAINEL IHM | C138: Ethernet TCP/IP + 4-20mA | D138: 10 m | E138: SEM PEDESTAL | F138: =_xlfn.CONCAT(TAB_COMBINAÇÕES[[#This Row],[AUTOMAÇÃO]],"+",TAB_COMBINAÇÕES[[#This Row],[COMUNICAÇÃO]],"+",TAB_COMBINAÇÕES[[#This Row],[CABO]],"+",TAB_COMBINAÇÕES[[#This Row],[FIXAÇÃO]]) -> CAIXA Exd + PAINEL IHM+Ethernet TCP/IP + 4-20mA+10 m+SEM PEDESTAL | G138: D8
B139: CAIXA Exd + PAINEL IHM | C139: Ethernet TCP/IP + 4-20mA | D139: 20 m | E139: SEM PEDESTAL | F139: =_xlfn.CONCAT(TAB_COMBINAÇÕES[[#This Row],[AUTOMAÇÃO]],"+",TAB_COMBINAÇÕES[[#This Row],[COMUNICAÇÃO]],"+",TAB_COMBINAÇÕES[[#This Row],[CABO]],"+",TAB_COMBINAÇÕES[[#This Row],[FIXAÇÃO]]) -> CAIXA Exd + PAINEL IHM+Ethernet TCP/IP + 4-20mA+20 m+SEM PEDESTAL | G139: D9
B140: CAIXA Exd + PAINEL IHM | C140: Ethernet TCP/IP + 4-20mA | D140: 50 m | E140: SEM PEDESTAL | F140: =_xlfn.CONCAT(TAB_COMBINAÇÕES[[#This Row],[AUTOMAÇÃO]],"+",TAB_COMBINAÇÕES[[#This Row],[COMUNICAÇÃO]],"+",TAB_COMBINAÇÕES[[#This Row],[CABO]],"+",TAB_COMBINAÇÕES[[#This Row],[FIXAÇÃO]]) -> CAIXA Exd + PAINEL IHM+Ethernet TCP/IP + 4-20mA+50 m+SEM PEDESTAL | G140: E1
B141: CAIXA Exd + PAINEL IHM | C141: Ethernet TCP/IP + 4-20mA | D141: 100 m | E141: SEM PEDESTAL | F141: =_xlfn.CONCAT(TAB_COMBINAÇÕES[[#This Row],[AUTOMAÇÃO]],"+",TAB_COMBINAÇÕES[[#This Row],[COMUNICAÇÃO]],"+",TAB_COMBINAÇÕES[[#This Row],[CABO]],"+",TAB_COMBINAÇÕES[[#This Row],[FIXAÇÃO]]) -> CAIXA Exd + PAINEL IHM+Ethernet TCP/IP + 4-20mA+100 m+SEM PEDESTAL | G141: E2
B142: CAIXA Exd + PAINEL IHM | C142: Ethernet TCP/IP + 4-20mA | D142: 200 m | E142: SEM PEDESTAL | F142: =_xlfn.CONCAT(TAB_COMBINAÇÕES[[#This Row],[AUTOMAÇÃO]],"+",TAB_COMBINAÇÕES[[#This Row],[COMUNICAÇÃO]],"+",TAB_COMBINAÇÕES[[#This Row],[CABO]],"+",TAB_COMBINAÇÕES[[#This Row],[FIXAÇÃO]]) -> CAIXA Exd + PAINEL IHM+Ethernet TCP/IP + 4-20mA+200 m+SEM PEDESTAL | G142: E3
B143: CAIXA Exd + PAINEL IHM | C143: Ethernet TCP/IP + 4-20mA | D143: 300 m | E143: SEM PEDESTAL | F143: =_xlfn.CONCAT(TAB_COMBINAÇÕES[[#This Row],[AUTOMAÇÃO]],"+",TAB_COMBINAÇÕES[[#This Row],[COMUNICAÇÃO]],"+",TAB_COMBINAÇÕES[[#This Row],[CABO]],"+",TAB_COMBINAÇÕES[[#This Row],[FIXAÇÃO]]) -> CAIXA Exd + PAINEL IHM+Ethernet TCP/IP + 4-20mA+300 m+SEM PEDESTAL | G143: E4
B144: CAIXA Exd + PAINEL IHM | C144: EtherNet/IP | D144: SEM CABO | E144: SEM PEDESTAL | F144: =_xlfn.CONCAT(TAB_COMBINAÇÕES[[#This Row],[AUTOMAÇÃO]],"+",TAB_COMBINAÇÕES[[#This Row],[COMUNICAÇÃO]],"+",TAB_COMBINAÇÕES[[#This Row],[CABO]],"+",TAB_COMBINAÇÕES[[#This Row],[FIXAÇÃO]]) -> CAIXA Exd + PAINEL IHM+EtherNet/IP+SEM CABO+SEM PEDESTAL | G144: E5
B145: CAIXA Exd + PAINEL IHM | C145: EtherNet/IP | D145: 10 m | E145: SEM PEDESTAL | F145: =_xlfn.CONCAT(TAB_COMBINAÇÕES[[#This Row],[AUTOMAÇÃO]],"+",TAB_COMBINAÇÕES[[#This Row],[COMUNICAÇÃO]],"+",TAB_COMBINAÇÕES[[#This Row],[CABO]],"+",TAB_COMBINAÇÕES[[#This Row],[FIXAÇÃO]]) -> CAIXA Exd + PAINEL IHM+EtherNet/IP+10 m+SEM PEDESTAL | G145: E6
B146: CAIXA Exd + PAINEL IHM | C146: EtherNet/IP | D146: 20 m | E146: SEM PEDESTAL | F146: =_xlfn.CONCAT(TAB_COMBINAÇÕES[[#This Row],[AUTOMAÇÃO]],"+",TAB_COMBINAÇÕES[[#This Row],[COMUNICAÇÃO]],"+",TAB_COMBINAÇÕES[[#This Row],[CABO]],"+",TAB_COMBINAÇÕES[[#This Row],[FIXAÇÃO]]) -> CAIXA Exd + PAINEL IHM+EtherNet/IP+20 m+SEM PEDESTAL | G146: E7
B147: CAIXA Exd + PAINEL IHM | C147: EtherNet/IP | D147: 50 m | E147: SEM PEDESTAL | F147: =_xlfn.CONCAT(TAB_COMBINAÇÕES[[#This Row],[AUTOMAÇÃO]],"+",TAB_COMBINAÇÕES[[#This Row],[COMUNICAÇÃO]],"+",TAB_COMBINAÇÕES[[#This Row],[CABO]],"+",TAB_COMBINAÇÕES[[#This Row],[FIXAÇÃO]]) -> CAIXA Exd + PAINEL IHM+EtherNet/IP+50 m+SEM PEDESTAL | G147: E8
B148: CAIXA Exd + PAINEL IHM | C148: EtherNet/IP | D148: 100 m | E148: SEM PEDESTAL | F148: =_xlfn.CONCAT(TAB_COMBINAÇÕES[[#This Row],[AUTOMAÇÃO]],"+",TAB_COMBINAÇÕES[[#This Row],[COMUNICAÇÃO]],"+",TAB_COMBINAÇÕES[[#This Row],[CABO]],"+",TAB_COMBINAÇÕES[[#This Row],[FIXAÇÃO]]) -> CAIXA Exd + PAINEL IHM+EtherNet/IP+100 m+SEM PEDESTAL | G148: E9
B149: CAIXA Exd + PAINEL IHM | C149: EtherNet/IP | D149: 200 m | E149: SEM PEDESTAL | F149: =_xlfn.CONCAT(TAB_COMBINAÇÕES[[#This Row],[AUTOMAÇÃO]],"+",TAB_COMBINAÇÕES[[#This Row],[COMUNICAÇÃO]],"+",TAB_COMBINAÇÕES[[#This Row],[CABO]],"+",TAB_COMBINAÇÕES[[#This Row],[FIXAÇÃO]]) -> CAIXA Exd + PAINEL IHM+EtherNet/IP+200 m+SEM PEDESTAL | G149: F1
B150: CAIXA Exd + PAINEL IHM | C150: EtherNet/IP | D150: 300 m | E150: SEM PEDESTAL | F150: =_xlfn.CONCAT(TAB_COMBINAÇÕES[[#This Row],[AUTOMAÇÃO]],"+",TAB_COMBINAÇÕES[[#This Row],[COMUNICAÇÃO]],"+",TAB_COMBINAÇÕES[[#This Row],[CABO]],"+",TAB_COMBINAÇÕES[[#This Row],[FIXAÇÃO]]) -> CAIXA Exd + PAINEL IHM+EtherNet/IP+300 m+SEM PEDESTAL | G150: F2
B151: CAIXA Exd + PAINEL IHM | C151: EtherNet/IP + 4-20mA | D151: SEM CABO | E151: SEM PEDESTAL | F151: =_xlfn.CONCAT(TAB_COMBINAÇÕES[[#This Row],[AUTOMAÇÃO]],"+",TAB_COMBINAÇÕES[[#This Row],[COMUNICAÇÃO]],"+",TAB_COMBINAÇÕES[[#This Row],[CABO]],"+",TAB_COMBINAÇÕES[[#This Row],[FIXAÇÃO]]) -> CAIXA Exd + PAINEL IHM+EtherNet/IP + 4-20mA+SEM CABO+SEM PEDESTAL | G151: F3
B152: CAIXA Exd + PAINEL IHM | C152: EtherNet/IP + 4-20mA | D152: 10 m | E152: SEM PEDESTAL | F152: =_xlfn.CONCAT(TAB_COMBINAÇÕES[[#This Row],[AUTOMAÇÃO]],"+",TAB_COMBINAÇÕES[[#This Row],[COMUNICAÇÃO]],"+",TAB_COMBINAÇÕES[[#This Row],[CABO]],"+",TAB_COMBINAÇÕES[[#This Row],[FIXAÇÃO]]) -> CAIXA Exd + PAINEL IHM+EtherNet/IP + 4-20mA+10 m+SEM PEDESTAL | G152: F4
B153: CAIXA Exd + PAINEL IHM | C153: EtherNet/IP + 4-20mA | D153: 20 m | E153: SEM PEDESTAL | F153: =_xlfn.CONCAT(TAB_COMBINAÇÕES[[#This Row],[AUTOMAÇÃO]],"+",TAB_COMBINAÇÕES[[#This Row],[COMUNICAÇÃO]],"+",TAB_COMBINAÇÕES[[#This Row],[CABO]],"+",TAB_COMBINAÇÕES[[#This Row],[FIXAÇÃO]]) -> CAIXA Exd + PAINEL IHM+EtherNet/IP + 4-20mA+20 m+SEM PEDESTAL | G153: F5
B154: CAIXA Exd + PAINEL IHM | C154: EtherNet/IP + 4-20mA | D154: 50 m | E154: SEM PEDESTAL | F154: =_xlfn.CONCAT(TAB_COMBINAÇÕES[[#This Row],[AUTOMAÇÃO]],"+",TAB_COMBINAÇÕES[[#This Row],[COMUNICAÇÃO]],"+",TAB_COMBINAÇÕES[[#This Row],[CABO]],"+",TAB_COMBINAÇÕES[[#This Row],[FIXAÇÃO]]) -> CAIXA Exd + PAINEL IHM+EtherNet/IP + 4-20mA+50 m+SEM PEDESTAL | G154: F6
B155: CAIXA Exd + PAINEL IHM | C155: EtherNet/IP + 4-20mA | D155: 100 m | E155: SEM PEDESTAL | F155: =_xlfn.CONCAT(TAB_COMBINAÇÕES[[#This Row],[AUTOMAÇÃO]],"+",TAB_COMBINAÇÕES[[#This Row],[COMUNICAÇÃO]],"+",TAB_COMBINAÇÕES[[#This Row],[CABO]],"+",TAB_COMBINAÇÕES[[#This Row],[FIXAÇÃO]]) -> CAIXA Exd + PAINEL IHM+EtherNet/IP + 4-20mA+100 m+SEM PEDESTAL | G155: F7
B156: CAIXA Exd + PAINEL IHM | C156: EtherNet/IP + 4-20mA | D156: 200 m | E156: SEM PEDESTAL | F156: =_xlfn.CONCAT(TAB_COMBINAÇÕES[[#This Row],[AUTOMAÇÃO]],"+",TAB_COMBINAÇÕES[[#This Row],[COMUNICAÇÃO]],"+",TAB_COMBINAÇÕES[[#This Row],[CABO]],"+",TAB_COMBINAÇÕES[[#This Row],[FIXAÇÃO]]) -> CAIXA Exd + PAINEL IHM+EtherNet/IP + 4-20mA+200 m+SEM PEDESTAL | G156: F8
B157: CAIXA Exd + PAINEL IHM | C157: EtherNet/IP + 4-20mA | D157: 300 m | E157: SEM PEDESTAL | F157: =_xlfn.CONCAT(TAB_COMBINAÇÕES[[#This Row],[AUTOMAÇÃO]],"+",TAB_COMBINAÇÕES[[#This Row],[COMUNICAÇÃO]],"+",TAB_COMBINAÇÕES[[#This Row],[CABO]],"+",TAB_COMBINAÇÕES[[#This Row],[FIXAÇÃO]]) -> CAIXA Exd + PAINEL IHM+EtherNet/IP + 4-20mA+300 m+SEM PEDESTAL | G157: F9
B158: CAIXA Exd + PAINEL IHM | C158: ModBus RTU | D158: SEM CABO | E158: SEM PEDESTAL | F158: =_xlfn.CONCAT(TAB_COMBINAÇÕES[[#This Row],[AUTOMAÇÃO]],"+",TAB_COMBINAÇÕES[[#This Row],[COMUNICAÇÃO]],"+",TAB_COMBINAÇÕES[[#This Row],[CABO]],"+",TAB_COMBINAÇÕES[[#This Row],[FIXAÇÃO]]) -> CAIXA Exd + PAINEL IHM+ModBus RTU+SEM CABO+SEM PEDESTAL | G158: G1
B159: CAIXA Exd + PAINEL IHM | C159: ModBus RTU | D159: 10 m | E159: SEM PEDESTAL | F159: =_xlfn.CONCAT(TAB_COMBINAÇÕES[[#This Row],[AUTOMAÇÃO]],"+",TAB_COMBINAÇÕES[[#This Row],[COMUNICAÇÃO]],"+",TAB_COMBINAÇÕES[[#This Row],[CABO]],"+",TAB_COMBINAÇÕES[[#This Row],[FIXAÇÃO]]) -> CAIXA Exd + PAINEL IHM+ModBus RTU+10 m+SEM PEDESTAL | G159: G2
B160: CAIXA Exd + PAINEL IHM | C160: ModBus RTU | D160: 20 m | E160: SEM PEDESTAL | F160: =_xlfn.CONCAT(TAB_COMBINAÇÕES[[#This Row],[AUTOMAÇÃO]],"+",TAB_COMBINAÇÕES[[#This Row],[COMUNICAÇÃO]],"+",TAB_COMBINAÇÕES[[#This Row],[CABO]],"+",TAB_COMBINAÇÕES[[#This Row],[FIXAÇÃO]]) -> CAIXA Exd + PAINEL IHM+ModBus RTU+20 m+SEM PEDESTAL | G160: G3
B161: CAIXA Exd + PAINEL IHM | C161: ModBus RTU | D161: 50 m | E161: SEM PEDESTAL | F161: =_xlfn.CONCAT(TAB_COMBINAÇÕES[[#This Row],[AUTOMAÇÃO]],"+",TAB_COMBINAÇÕES[[#This Row],[COMUNICAÇÃO]],"+",TAB_COMBINAÇÕES[[#This Row],[CABO]],"+",TAB_COMBINAÇÕES[[#This Row],[FIXAÇÃO]]) -> CAIXA Exd + PAINEL IHM+ModBus RTU+50 m+SEM PEDESTAL | G161: G4
B162: CAIXA Exd + PAINEL IHM | C162: ModBus RTU | D162: 100 m | E162: SEM PEDESTAL | F162: =_xlfn.CONCAT(TAB_COMBINAÇÕES[[#This Row],[AUTOMAÇÃO]],"+",TAB_COMBINAÇÕES[[#This Row],[COMUNICAÇÃO]],"+",TAB_COMBINAÇÕES[[#This Row],[CABO]],"+",TAB_COMBINAÇÕES[[#This Row],[FIXAÇÃO]]) -> CAIXA Exd + PAINEL IHM+ModBus RTU+100 m+SEM PEDESTAL | G162: G5
B163: CAIXA Exd + PAINEL IHM | C163: ModBus RTU | D163: 200 m | E163: SEM PEDESTAL | F163: =_xlfn.CONCAT(TAB_COMBINAÇÕES[[#This Row],[AUTOMAÇÃO]],"+",TAB_COMBINAÇÕES[[#This Row],[COMUNICAÇÃO]],"+",TAB_COMBINAÇÕES[[#This Row],[CABO]],"+",TAB_COMBINAÇÕES[[#This Row],[FIXAÇÃO]]) -> CAIXA Exd + PAINEL IHM+ModBus RTU+200 m+SEM PEDESTAL | G163: G6
B164: CAIXA Exd + PAINEL IHM | C164: ModBus RTU | D164: 300 m | E164: SEM PEDESTAL | F164: =_xlfn.CONCAT(TAB_COMBINAÇÕES[[#This Row],[AUTOMAÇÃO]],"+",TAB_COMBINAÇÕES[[#This Row],[COMUNICAÇÃO]],"+",TAB_COMBINAÇÕES[[#This Row],[CABO]],"+",TAB_COMBINAÇÕES[[#This Row],[FIXAÇÃO]]) -> CAIXA Exd + PAINEL IHM+ModBus RTU+300 m+SEM PEDESTAL | G164: G7
B165: CAIXA Exd + PAINEL IHM | C165: ModBus RTU + 4-20mA | D165: SEM CABO | E165: SEM PEDESTAL | F165: =_xlfn.CONCAT(TAB_COMBINAÇÕES[[#This Row],[AUTOMAÇÃO]],"+",TAB_COMBINAÇÕES[[#This Row],[COMUNICAÇÃO]],"+",TAB_COMBINAÇÕES[[#This Row],[CABO]],"+",TAB_COMBINAÇÕES[[#This Row],[FIXAÇÃO]]) -> CAIXA Exd + PAINEL IHM+ModBus RTU + 4-20mA+SEM CABO+SEM PEDESTAL | G165: G8
B166: CAIXA Exd + PAINEL IHM | C166: ModBus RTU + 4-20mA | D166: 10 m | E166: SEM PEDESTAL | F166: =_xlfn.CONCAT(TAB_COMBINAÇÕES[[#This Row],[AUTOMAÇÃO]],"+",TAB_COMBINAÇÕES[[#This Row],[COMUNICAÇÃO]],"+",TAB_COMBINAÇÕES[[#This Row],[CABO]],"+",TAB_COMBINAÇÕES[[#This Row],[FIXAÇÃO]]) -> CAIXA Exd + PAINEL IHM+ModBus RTU + 4-20mA+10 m+SEM PEDESTAL | G166: G9
B167: CAIXA Exd + PAINEL IHM | C167: ModBus RTU + 4-20mA | D167: 20 m | E167: SEM PEDESTAL | F167: =_xlfn.CONCAT(TAB_COMBINAÇÕES[[#This Row],[AUTOMAÇÃO]],"+",TAB_COMBINAÇÕES[[#This Row],[COMUNICAÇÃO]],"+",TAB_COMBINAÇÕES[[#This Row],[CABO]],"+",TAB_COMBINAÇÕES[[#This Row],[FIXAÇÃO]]) -> CAIXA Exd + PAINEL IHM+ModBus RTU + 4-20mA+20 m+SEM PEDESTAL | G167: H1
B168: CAIXA Exd + PAINEL IHM | C168: ModBus RTU + 4-20mA | D168: 50 m | E168: SEM PEDESTAL | F168: =_xlfn.CONCAT(TAB_COMBINAÇÕES[[#This Row],[AUTOMAÇÃO]],"+",TAB_COMBINAÇÕES[[#This Row],[COMUNICAÇÃO]],"+",TAB_COMBINAÇÕES[[#This Row],[CABO]],"+",TAB_COMBINAÇÕES[[#This Row],[FIXAÇÃO]]) -> CAIXA Exd + PAINEL IHM+ModBus RTU + 4-20mA+50 m+SEM PEDESTAL | G168: H2
B169: CAIXA Exd + PAINEL IHM | C169: ModBus RTU + 4-20mA | D169: 100 m | E169: SEM PEDESTAL | F169: =_xlfn.CONCAT(TAB_COMBINAÇÕES[[#This Row],[AUTOMAÇÃO]],"+",TAB_COMBINAÇÕES[[#This Row],[COMUNICAÇÃO]],"+",TAB_COMBINAÇÕES[[#This Row],[CABO]],"+",TAB_COMBINAÇÕES[[#This Row],[FIXAÇÃO]]) -> CAIXA Exd + PAINEL IHM+ModBus RTU + 4-20mA+100 m+SEM PEDESTAL | G169: H3
B170: CAIXA Exd + PAINEL IHM | C170: ModBus RTU + 4-20mA | D170: 200 m | E170: SEM PEDESTAL | F170: =_xlfn.CONCAT(TAB_COMBINAÇÕES[[#This Row],[AUTOMAÇÃO]],"+",TAB_COMBINAÇÕES[[#This Row],[COMUNICAÇÃO]],"+",TAB_COMBINAÇÕES[[#This Row],[CABO]],"+",TAB_COMBINAÇÕES[[#This Row],[FIXAÇÃO]]) -> CAIXA Exd + PAINEL IHM+ModBus RTU + 4-20mA+200 m+SEM PEDESTAL | G170: H4
B171: CAIXA Exd + PAINEL IHM | C171: ModBus RTU + 4-20mA | D171: 300 m | E171: SEM PEDESTAL | F171: =_xlfn.CONCAT(TAB_COMBINAÇÕES[[#This Row],[AUTOMAÇÃO]],"+",TAB_COMBINAÇÕES[[#This Row],[COMUNICAÇÃO]],"+",TAB_COMBINAÇÕES[[#This Row],[CABO]],"+",TAB_COMBINAÇÕES[[#This Row],[FIXAÇÃO]]) -> CAIXA Exd + PAINEL IHM+ModBus RTU + 4-20mA+300 m+SEM PEDESTAL | G171: H5
B172: CAIXA Exd + PAINEL IHM | C172: ModBus TCP/IP | D172: SEM CABO | E172: SEM PEDESTAL | F172: =_xlfn.CONCAT(TAB_COMBINAÇÕES[[#This Row],[AUTOMAÇÃO]],"+",TAB_COMBINAÇÕES[[#This Row],[COMUNICAÇÃO]],"+",TAB_COMBINAÇÕES[[#This Row],[CABO]],"+",TAB_COMBINAÇÕES[[#This Row],[FIXAÇÃO]]) -> CAIXA Exd + PAINEL IHM+ModBus TCP/IP+SEM CABO+SEM PEDESTAL | G172: H6
B173: CAIXA Exd + PAINEL IHM | C173: ModBus TCP/IP | D173: 10 m | E173: SEM PEDESTAL | F173: =_xlfn.CONCAT(TAB_COMBINAÇÕES[[#This Row],[AUTOMAÇÃO]],"+",TAB_COMBINAÇÕES[[#This Row],[COMUNICAÇÃO]],"+",TAB_COMBINAÇÕES[[#This Row],[CABO]],"+",TAB_COMBINAÇÕES[[#This Row],[FIXAÇÃO]]) -> CAIXA Exd + PAINEL IHM+ModBus TCP/IP+10 m+SEM PEDESTAL | G173: H7
B174: CAIXA Exd + PAINEL IHM | C174: ModBus TCP/IP | D174: 20 m | E174: SEM PEDESTAL | F174: =_xlfn.CONCAT(TAB_COMBINAÇÕES[[#This Row],[AUTOMAÇÃO]],"+",TAB_COMBINAÇÕES[[#This Row],[COMUNICAÇÃO]],"+",TAB_COMBINAÇÕES[[#This Row],[CABO]],"+",TAB_COMBINAÇÕES[[#This Row],[FIXAÇÃO]]) -> CAIXA Exd + PAINEL IHM+ModBus TCP/IP+20 m+SEM PEDESTAL | G174: H8
B175: CAIXA Exd + PAINEL IHM | C175: ModBus TCP/IP | D175: 50 m | E175: SEM PEDESTAL | F175: =_xlfn.CONCAT(TAB_COMBINAÇÕES[[#This Row],[AUTOMAÇÃO]],"+",TAB_COMBINAÇÕES[[#This Row],[COMUNICAÇÃO]],"+",TAB_COMBINAÇÕES[[#This Row],[CABO]],"+",TAB_COMBINAÇÕES[[#This Row],[FIXAÇÃO]]) -> CAIXA Exd + PAINEL IHM+ModBus TCP/IP+50 m+SEM PEDESTAL | G175: H9
B176: CAIXA Exd + PAINEL IHM | C176: ModBus TCP/IP | D176: 100 m | E176: SEM PEDESTAL | F176: =_xlfn.CONCAT(TAB_COMBINAÇÕES[[#This Row],[AUTOMAÇÃO]],"+",TAB_COMBINAÇÕES[[#This Row],[COMUNICAÇÃO]],"+",TAB_COMBINAÇÕES[[#This Row],[CABO]],"+",TAB_COMBINAÇÕES[[#This Row],[FIXAÇÃO]]) -> CAIXA Exd + PAINEL IHM+ModBus TCP/IP+100 m+SEM PEDESTAL | G176: I1
B177: CAIXA Exd + PAINEL IHM | C177: ModBus TCP/IP | D177: 200 m | E177: SEM PEDESTAL | F177: =_xlfn.CONCAT(TAB_COMBINAÇÕES[[#This Row],[AUTOMAÇÃO]],"+",TAB_COMBINAÇÕES[[#This Row],[COMUNICAÇÃO]],"+",TAB_COMBINAÇÕES[[#This Row],[CABO]],"+",TAB_COMBINAÇÕES[[#This Row],[FIXAÇÃO]]) -> CAIXA Exd + PAINEL IHM+ModBus TCP/IP+200 m+SEM PEDESTAL | G177: I2
B178: CAIXA Exd + PAINEL IHM | C178: ModBus TCP/IP | D178: 300 m | E178: SEM PEDESTAL | F178: =_xlfn.CONCAT(TAB_COMBINAÇÕES[[#This Row],[AUTOMAÇÃO]],"+",TAB_COMBINAÇÕES[[#This Row],[COMUNICAÇÃO]],"+",TAB_COMBINAÇÕES[[#This Row],[CABO]],"+",TAB_COMBINAÇÕES[[#This Row],[FIXAÇÃO]]) -> CAIXA Exd + PAINEL IHM+ModBus TCP/IP+300 m+SEM PEDESTAL | G178: I3
B179: CAIXA Exd + PAINEL IHM | C179: ModBus TCP/IP + 4-20mA | D179: SEM CABO | E179: SEM PEDESTAL | F179: =_xlfn.CONCAT(TAB_COMBINAÇÕES[[#This Row],[AUTOMAÇÃO]],"+",TAB_COMBINAÇÕES[[#This Row],[COMUNICAÇÃO]],"+",TAB_COMBINAÇÕES[[#This Row],[CABO]],"+",TAB_COMBINAÇÕES[[#This Row],[FIXAÇÃO]]) -> CAIXA Exd + PAINEL IHM+ModBus TCP/IP + 4-20mA+SEM CABO+SEM PEDESTAL | G179: I4
B180: CAIXA Exd + PAINEL IHM | C180: ModBus TCP/IP + 4-20mA | D180: 10 m | E180: SEM PEDESTAL | F180: =_xlfn.CONCAT(TAB_COMBINAÇÕES[[#This Row],[AUTOMAÇÃO]],"+",TAB_COMBINAÇÕES[[#This Row],[COMUNICAÇÃO]],"+",TAB_COMBINAÇÕES[[#This Row],[CABO]],"+",TAB_COMBINAÇÕES[[#This Row],[FIXAÇÃO]]) -> CAIXA Exd + PAINEL IHM+ModBus TCP/IP + 4-20mA+10 m+SEM PEDESTAL | G180: I5
B181: CAIXA Exd + PAINEL IHM | C181: ModBus TCP/IP + 4-20mA | D181: 20 m | E181: SEM PEDESTAL | F181: =_xlfn.CONCAT(TAB_COMBINAÇÕES[[#This Row],[AUTOMAÇÃO]],"+",TAB_COMBINAÇÕES[[#This Row],[COMUNICAÇÃO]],"+",TAB_COMBINAÇÕES[[#This Row],[CABO]],"+",TAB_COMBINAÇÕES[[#This Row],[FIXAÇÃO]]) -> CAIXA Exd + PAINEL IHM+ModBus TCP/IP + 4-20mA+20 m+SEM PEDESTAL | G181: I6
B182: CAIXA Exd + PAINEL IHM | C182: ModBus TCP/IP + 4-20mA | D182: 50 m | E182: SEM PEDESTAL | F182: =_xlfn.CONCAT(TAB_COMBINAÇÕES[[#This Row],[AUTOMAÇÃO]],"+",TAB_COMBINAÇÕES[[#This Row],[COMUNICAÇÃO]],"+",TAB_COMBINAÇÕES[[#This Row],[CABO]],"+",TAB_COMBINAÇÕES[[#This Row],[FIXAÇÃO]]) -> CAIXA Exd + PAINEL IHM+ModBus TCP/IP + 4-20mA+50 m+SEM PEDESTAL | G182: I7
B183: CAIXA Exd + PAINEL IHM | C183: ModBus TCP/IP + 4-20mA | D183: 100 m | E183: SEM PEDESTAL | F183: =_xlfn.CONCAT(TAB_COMBINAÇÕES[[#This Row],[AUTOMAÇÃO]],"+",TAB_COMBINAÇÕES[[#This Row],[COMUNICAÇÃO]],"+",TAB_COMBINAÇÕES[[#This Row],[CABO]],"+",TAB_COMBINAÇÕES[[#This Row],[FIXAÇÃO]]) -> CAIXA Exd + PAINEL IHM+ModBus TCP/IP + 4-20mA+100 m+SEM PEDESTAL | G183: I8
B184: CAIXA Exd + PAINEL IHM | C184: ModBus TCP/IP + 4-20mA | D184: 200 m | E184: SEM PEDESTAL | F184: =_xlfn.CONCAT(TAB_COMBINAÇÕES[[#This Row],[AUTOMAÇÃO]],"+",TAB_COMBINAÇÕES[[#This Row],[COMUNICAÇÃO]],"+",TAB_COMBINAÇÕES[[#This Row],[CABO]],"+",TAB_COMBINAÇÕES[[#This Row],[FIXAÇÃO]]) -> CAIXA Exd + PAINEL IHM+ModBus TCP/IP + 4-20mA+200 m+SEM PEDESTAL | G184: I9
B185: CAIXA Exd + PAINEL IHM | C185: ModBus TCP/IP + 4-20mA | D185: 300 m | E185: SEM PEDESTAL | F185: =_xlfn.CONCAT(TAB_COMBINAÇÕES[[#This Row],[AUTOMAÇÃO]],"+",TAB_COMBINAÇÕES[[#This Row],[COMUNICAÇÃO]],"+",TAB_COMBINAÇÕES[[#This Row],[CABO]],"+",TAB_COMBINAÇÕES[[#This Row],[FIXAÇÃO]]) -> CAIXA Exd + PAINEL IHM+ModBus TCP/IP + 4-20mA+300 m+SEM PEDESTAL | G185: J1
B186: CAIXA Exd + PAINEL IHM | C186: Profibus | D186: SEM CABO | E186: SEM PEDESTAL | F186: =_xlfn.CONCAT(TAB_COMBINAÇÕES[[#This Row],[AUTOMAÇÃO]],"+",TAB_COMBINAÇÕES[[#This Row],[COMUNICAÇÃO]],"+",TAB_COMBINAÇÕES[[#This Row],[CABO]],"+",TAB_COMBINAÇÕES[[#This Row],[FIXAÇÃO]]) -> CAIXA Exd + PAINEL IHM+Profibus+SEM CABO+SEM PEDESTAL | G186: J2
B187: CAIXA Exd + PAINEL IHM | C187: Profibus | D187: 10 m | E187: SEM PEDESTAL | F187: =_xlfn.CONCAT(TAB_COMBINAÇÕES[[#This Row],[AUTOMAÇÃO]],"+",TAB_COMBINAÇÕES[[#This Row],[COMUNICAÇÃO]],"+",TAB_COMBINAÇÕES[[#This Row],[CABO]],"+",TAB_COMBINAÇÕES[[#This Row],[FIXAÇÃO]]) -> CAIXA Exd + PAINEL IHM+Profibus+10 m+SEM PEDESTAL | G187: J3
B188: CAIXA Exd + PAINEL IHM | C188: Profibus | D188: 20 m | E188: SEM PEDESTAL | F188: =_xlfn.CONCAT(TAB_COMBINAÇÕES[[#This Row],[AUTOMAÇÃO]],"+",TAB_COMBINAÇÕES[[#This Row],[COMUNICAÇÃO]],"+",TAB_COMBINAÇÕES[[#This Row],[CABO]],"+",TAB_COMBINAÇÕES[[#This Row],[FIXAÇÃO]]) -> CAIXA Exd + PAINEL IHM+Profibus+20 m+SEM PEDESTAL | G188: J4
B189: CAIXA Exd + PAINEL IHM | C189: Profibus | D189: 50 m | E189: SEM PEDESTAL | F189: =_xlfn.CONCAT(TAB_COMBINAÇÕES[[#This Row],[AUTOMAÇÃO]],"+",TAB_COMBINAÇÕES[[#This Row],[COMUNICAÇÃO]],"+",TAB_COMBINAÇÕES[[#This Row],[CABO]],"+",TAB_COMBINAÇÕES[[#This Row],[FIXAÇÃO]]) -> CAIXA Exd + PAINEL IHM+Profibus+50 m+SEM PEDESTAL | G189: J5
B190: CAIXA Exd + PAINEL IHM | C190: Profibus | D190: 100 m | E190: SEM PEDESTAL | F190: =_xlfn.CONCAT(TAB_COMBINAÇÕES[[#This Row],[AUTOMAÇÃO]],"+",TAB_COMBINAÇÕES[[#This Row],[COMUNICAÇÃO]],"+",TAB_COMBINAÇÕES[[#This Row],[CABO]],"+",TAB_COMBINAÇÕES[[#This Row],[FIXAÇÃO]]) -> CAIXA Exd + PAINEL IHM+Profibus+100 m+SEM PEDESTAL | G190: J6
B191: CAIXA Exd + PAINEL IHM | C191: Profibus | D191: 200 m | E191: SEM PEDESTAL | F191: =_xlfn.CONCAT(TAB_COMBINAÇÕES[[#This Row],[AUTOMAÇÃO]],"+",TAB_COMBINAÇÕES[[#This Row],[COMUNICAÇÃO]],"+",TAB_COMBINAÇÕES[[#This Row],[CABO]],"+",TAB_COMBINAÇÕES[[#This Row],[FIXAÇÃO]]) -> CAIXA Exd + PAINEL IHM+Profibus+200 m+SEM PEDESTAL | G191: J7
B192: CAIXA Exd + PAINEL IHM | C192: Profibus | D192: 300 m | E192: SEM PEDESTAL | F192: =_xlfn.CONCAT(TAB_COMBINAÇÕES[[#This Row],[AUTOMAÇÃO]],"+",TAB_COMBINAÇÕES[[#This Row],[COMUNICAÇÃO]],"+",TAB_COMBINAÇÕES[[#This Row],[CABO]],"+",TAB_COMBINAÇÕES[[#This Row],[FIXAÇÃO]]) -> CAIXA Exd + PAINEL IHM+Profibus+300 m+SEM PEDESTAL | G192: J8
B193: CAIXA Exd + PAINEL IHM | C193: Profibus + 4-20mA | D193: SEM CABO | E193: SEM PEDESTAL | F193: =_xlfn.CONCAT(TAB_COMBINAÇÕES[[#This Row],[AUTOMAÇÃO]],"+",TAB_COMBINAÇÕES[[#This Row],[COMUNICAÇÃO]],"+",TAB_COMBINAÇÕES[[#This Row],[CABO]],"+",TAB_COMBINAÇÕES[[#This Row],[FIXAÇÃO]]) -> CAIXA Exd + PAINEL IHM+Profibus + 4-20mA+SEM CABO+SEM PEDESTAL | G193: J9
B194: CAIXA Exd + PAINEL IHM | C194: Profibus + 4-20mA | D194: 10 m | E194: SEM PEDESTAL | F194: =_xlfn.CONCAT(TAB_COMBINAÇÕES[[#This Row],[AUTOMAÇÃO]],"+",TAB_COMBINAÇÕES[[#This Row],[COMUNICAÇÃO]],"+",TAB_COMBINAÇÕES[[#This Row],[CABO]],"+",TAB_COMBINAÇÕES[[#This Row],[FIXAÇÃO]]) -> CAIXA Exd + PAINEL IHM+Profibus + 4-20mA+10 m+SEM PEDESTAL | G194: K1
B195: CAIXA Exd + PAINEL IHM | C195: Profibus + 4-20mA | D195: 20 m | E195: SEM PEDESTAL | F195: =_xlfn.CONCAT(TAB_COMBINAÇÕES[[#This Row],[AUTOMAÇÃO]],"+",TAB_COMBINAÇÕES[[#This Row],[COMUNICAÇÃO]],"+",TAB_COMBINAÇÕES[[#This Row],[CABO]],"+",TAB_COMBINAÇÕES[[#This Row],[FIXAÇÃO]]) -> CAIXA Exd + PAINEL IHM+Profibus + 4-20mA+20 m+SEM PEDESTAL | G195: K2
B196: CAIXA Exd + PAINEL IHM | C196: Profibus + 4-20mA | D196: 50 m | E196: SEM PEDESTAL | F196: =_xlfn.CONCAT(TAB_COMBINAÇÕES[[#This Row],[AUTOMAÇÃO]],"+",TAB_COMBINAÇÕES[[#This Row],[COMUNICAÇÃO]],"+",TAB_COMBINAÇÕES[[#This Row],[CABO]],"+",TAB_COMBINAÇÕES[[#This Row],[FIXAÇÃO]]) -> CAIXA Exd + PAINEL IHM+Profibus + 4-20mA+50 m+SEM PEDESTAL | G196: K3
B197: CAIXA Exd + PAINEL IHM | C197: Profibus + 4-20mA | D197: 100 m | E197: SEM PEDESTAL | F197: =_xlfn.CONCAT(TAB_COMBINAÇÕES[[#This Row],[AUTOMAÇÃO]],"+",TAB_COMBINAÇÕES[[#This Row],[COMUNICAÇÃO]],"+",TAB_COMBINAÇÕES[[#This Row],[CABO]],"+",TAB_COMBINAÇÕES[[#This Row],[FIXAÇÃO]]) -> CAIXA Exd + PAINEL IHM+Profibus + 4-20mA+100 m+SEM PEDESTAL | G197: K4
B198: CAIXA Exd + PAINEL IHM | C198: Profibus + 4-20mA | D198: 200 m | E198: SEM PEDESTAL | F198: =_xlfn.CONCAT(TAB_COMBINAÇÕES[[#This Row],[AUTOMAÇÃO]],"+",TAB_COMBINAÇÕES[[#This Row],[COMUNICAÇÃO]],"+",TAB_COMBINAÇÕES[[#This Row],[CABO]],"+",TAB_COMBINAÇÕES[[#This Row],[FIXAÇÃO]]) -> CAIXA Exd + PAINEL IHM+Profibus + 4-20mA+200 m+SEM PEDESTAL | G198: K5
B199: CAIXA Exd + PAINEL IHM | C199: Profibus + 4-20mA | D199: 300 m | E199: SEM PEDESTAL | F199: =_xlfn.CONCAT(TAB_COMBINAÇÕES[[#This Row],[AUTOMAÇÃO]],"+",TAB_COMBINAÇÕES[[#This Row],[COMUNICAÇÃO]],"+",TAB_COMBINAÇÕES[[#This Row],[CABO]],"+",TAB_COMBINAÇÕES[[#This Row],[FIXAÇÃO]]) -> CAIXA Exd + PAINEL IHM+Profibus + 4-20mA+300 m+SEM PEDESTAL | G199: K6
B200: CAIXA Exd + PAINEL IHM | C200: Profinet | D200: SEM CABO | E200: SEM PEDESTAL | F200: =_xlfn.CONCAT(TAB_COMBINAÇÕES[[#This Row],[AUTOMAÇÃO]],"+",TAB_COMBINAÇÕES[[#This Row],[COMUNICAÇÃO]],"+",TAB_COMBINAÇÕES[[#This Row],[CABO]],"+",TAB_COMBINAÇÕES[[#This Row],[FIXAÇÃO]]) -> CAIXA Exd + PAINEL IHM+Profinet+SEM CABO+SEM PEDESTAL | G200: K7
B201: CAIXA Exd + PAINEL IHM | C201: Profinet | D201: 10 m | E201: SEM PEDESTAL | F201: =_xlfn.CONCAT(TAB_COMBINAÇÕES[[#This Row],[AUTOMAÇÃO]],"+",TAB_COMBINAÇÕES[[#This Row],[COMUNICAÇÃO]],"+",TAB_COMBINAÇÕES[[#This Row],[CABO]],"+",TAB_COMBINAÇÕES[[#This Row],[FIXAÇÃO]]) -> CAIXA Exd + PAINEL IHM+Profinet+10 m+SEM PEDESTAL | G201: K8
B202: CAIXA Exd + PAINEL IHM | C202: Profinet | D202: 20 m | E202: SEM PEDESTAL | F202: =_xlfn.CONCAT(TAB_COMBINAÇÕES[[#This Row],[AUTOMAÇÃO]],"+",TAB_COMBINAÇÕES[[#This Row],[COMUNICAÇÃO]],"+",TAB_COMBINAÇÕES[[#This Row],[CABO]],"+",TAB_COMBINAÇÕES[[#This Row],[FIXAÇÃO]]) -> CAIXA Exd + PAINEL IHM+Profinet+20 m+SEM PEDESTAL | G202: K9
... 431 more rows
